Workbook

Sheet مرتبات
G3: مرتبـــات شـــهــــــر مارس 2025
A4: الجمعية التعاونية الزراعية
A5: بناحية | B5: راضى
A6: م | B6: الاســــــــــــــم | D6: الاســـــــــــــــــــــــــــــــــــــــــــــــــــــــــــــــــتــحـــقـــاقــــــات | P6: الاســــــتـــقــطـــاعـــــات | S6: جملة الخصومات | T6: الصافى المستحق | U6: التوقيع
C7: اسم | D7: حافز الإثابة | E7: العلاوة غلاء معيشة | F7: العلاوة الاجتماعية | G7: العلاوة المضمومة | H7: المرتب الاساسى | I7: جملة المرتب | J7: علاوة اجتماعية | K7: المنحة | L7: الفرق التأمينى | M7: الإجمالى العام | N7: 18.75% حصة الجمعية | O7: الإجمالى بحصة الجمعية | P7: 29.75% للتأمينات | Q7: قرض شهرى | R7: دمغة | S7: جملة الخصومات | T7: الصافى المستحق
C8: الجمعية | D8: ق . ج | F8: ق . ج | G8: ق . ج | H8: ق . ج | I8: ق . ج | J8: ق . ج | K8: ق . ج | L8: ق . ج | M8: ق . ج | N8: ق . ج | O8: ق . ج | P8: ق . ج | Q8: ق . ج | R8: ق . ج | S8: ق . ج | T8: ق . ج
C9: بسنتواى | D9: 1484.08 | E9: 600 | F9: 199.4 | G9: 126.5 | H9: 793.9828 | I9: =SUM(E9:H9) -> 1719.8828 | J9: 10 | K9: 10 | L9: 152.02 | M9: =SUM(I9:L9)+D9 -> 3375.9828 | N9: =M9*18.75% -> 632.996775 | O9: =SUM(M9:N9) -> 4008.979575 | P9: =ROUNDDOWN(M9*29.75%,2) -> 1004.35 | R9: =(M9-50)*7.5/1000 -> 24.944871 | S9: =SUM(P9:R9) -> 1029.294871 | T9: =O9-S9 -> 2979.684704
C10: ابوهواش | D10: 399.6 | E10: 600 | F10: 211.3 | G10: 126.5 | H10: 933.74 | I10: =SUM(E10:H10) -> 1871.54 | J10: 10 | K10: 10 | M10: =SUM(I10:L10)+D10 -> 2291.14 | N10: 429.58875 | O10: 2720.72875 | P10: 681.61 | R10: =(M10-50)*7.5/1000 -> 16.80855 | S10: 698.41855 | T10: 2022.3102
C11: ابوهواش | D11: 352 | E11: 300 | F11: 115.2 | G11: 124 | H11: 607.43 | I11: =SUM(E11:H11) -> 1146.63 | J11: 10 | K11: 10 | M11: 1518.63 | N11: 284.743125 | O11: 1803.373125 | P11: 451.79 | R11: =(M11-50)*7.5/1000 -> 11.014725 | S11: 462.804725 | T11: 1340.5684
C12: ابوهواش | D12: 169 | E12: 300 | F12: 106.9 | G12: 124 | H12: 565.07 | I12: =SUM(E12:H12) -> 1095.97 | K12: 10 | M12: 1274.97 | N12: 239.056875 | O12: 1514.026875 | P12: 379.3 | R12: =(M12-50)*7.5/1000 -> 9.187275 | S12: 388.487275 | T12: 1125.5396
C13: ابوهواش | D13: 360 | E13: 600 | F13: 220 | G13: 124 | H13: 642.93 | I13: =SUM(E13:H13) -> 1586.93 | K13: 10 | M13: 1956.93 | N13: 366.924375 | O13: 2323.854375 | P13: 582.18 | R13: =(M13-50)*7.5/1000 -> 14.301975 | S13: 596.481975 | T13: 1727.3724
C14: العشرة | D14: 357.7 | E14: 600 | F14: 141.15 | G14: 124 | H14: 990.01 | I14: =SUM(E14:H14) -> 1855.16 | J14: 10 | K14: 10 | L14: 106.91 | M14: =SUM(I14:L14)+D14 -> 2339.77 | N14: 438.706875 | O14: 2778.476875 | P14: =ROUNDDOWN(M14*29.75%,2) -> 696.08 | R14: =(M14-50)*7.5/1000 -> 17.173275 | S14: 713.253275 | T14: 2065.2236 | Y14: =W14*6 -> 0
C15: العشرة | D15: 338 | E15: 600 | F15: 113.8 | G15: 124 | H15: 1021.86 | I15: 1859.66 | J15: 10 | K15: 10 | L15: 124.19 | M15: 2341.85 | N15: 439.096875 | O15: 2780.946875 | P15: 696.7 | R15: 17.188875 | S15: 713.888875 | T15: 2067.058
C16: بسنتواى | D16: 1484.08 | E16: 600 | F16: 201.4 | G16: 126.5 | H16: 793.9828 | I16: 1721.8828 | J16: 4 | K16: 10 | L16: 156.02 | M16: 3375.9828 | N16: 632.996775 | O16: 4008.979575 | P16: 1004.35 | R16: 24.944871 | S16: 1029.294871 | T16: 2979.684704
C17: برسيق | D17: 352 | E17: 600 | F17: 140.5 | G17: 124 | H17: 822.78 | I17: 1687.28 | K17: 10 | M17: 2049.28 | N17: 384.24 | O17: 2433.52 | P17: 609.66 | R17: 14.9946 | S17: 624.6546 | T17: 1808.8654
C18: العشرة | D18: 971.76 | E18: 600 | F18: 148.05 | G18: 126.5 | H18: 1037.78 | I18: 1912.33 | J18: 8 | K18: 10 | L18: 49.89 | M18: 2951.98 | N18: 553.49625 | O18: 3505.47625 | P18: 878.21 | R18: 21.76485 | S18: 899.97485 | T18: 2605.5014
C19: النخلة البحرية | D19: 340 | E19: 600 | F19: 96.9 | G19: 124 | H19: 917.8 | I19: 1738.7 | J19: 10 | K19: 10 | M19: 2098.7 | N19: 393.50625 | O19: 2492.20625 | P19: 624.36 | R19: 15.36525 | S19: 639.72525 | T19: 1852.481
C20: النخلة البحرية | D20: 420 | E20: 600 | F20: 220 | G20: 124 | H20: 691.01 | I20: 1635.01 | K20: 10 | L20: 284.99 | M20: 2350 | N20: 440.625 | O20: 2790.625 | P20: 699.12 | R20: 17.25 | S20: 716.37 | T20: 2074.255
C21: ابوكبارية | D21: 380.4 | E21: 600 | F21: 242.65 | G21: 104 | H21: 348.08 | I21: =SUM(E21:H21) -> 1294.73 | J21: 10 | K21: 10 | L21: 452.65 | M21: 2147.78 | N21: 402.70875 | O21: 2550.48875 | P21: 638.96 | Q21: 250 | R21: =(M21-50)*7.5/1000 -> 15.73335 | S21: 904.69335 | T21: 1645.7954
C22: بريدان | D22: 986.74 | E22: 600 | F22: 246.95 | G22: 136 | H22: 1046.36 | I22: 2029.31 | J22: 6 | K22: 10 | M22: 3032.05 | N22: 568.509375 | O22: 3600.559375 | P22: 902.03 | R22: 22.365375 | S22: 924.395375 | T22: 2676.164
C23: ط.برسيق | D23: 569 | E23: 600 | F23: 318.45 | G23: 140 | H23: 1160.4 | I23: 2218.85 | J23: 6 | K23: 10 | M23: 2803.85 | N23: 525.721875 | O23: 3329.571875 | P23: 834.14 | R23: 20.653875 | S23: 854.793875 | T23: 2474.778
C24: ط.برسيق | D24: 340 | E24: 600 | F24: 96.9 | G24: 124 | H24: 1010.83 | I24: 1831.73 | J24: 10 | K24: 10 | M24: 2191.73 | N24: 410.949375 | O24: 2602.679375 | P24: 652.03 | R24: 16.062975 | S24: 668.092975 | T24: 1934.5864
C25: ط.برسيق | D25: 380 | E25: 600 | F25: 106.9 | G25: 124 | H25: 1003.48 | I25: 1834.38 | J25: 10 | K25: 10 | M25: 2234.38 | N25: 418.94625 | O25: 2653.32625 | P25: 664.72 | R25: 16.38285 | S25: 681.10285 | T25: 1972.2234
C26: بركة غطاس | D26: 494 | E26: 600 | F26: 317.75 | G26: 136 | H26: 1122.21 | I26: 2175.96 | J26: 10 | K26: 10 | M26: 2689.96 | N26: 504.3675 | O26: 3194.3275 | P26: 800.26 | R26: 19.7997 | S26: 820.0597 | T26: 2374.2678
C27: بريدان | D27: 95 | E27: 600 | F27: 106.9 | G27: 124 | H27: 981.44 | I27: 1812.34 | K27: 10 | L27: 227.44 | M27: 2144.78 | N27: 402.14625 | O27: 2546.92625 | P27: 638.07 | R27: 15.71085 | S27: 653.78085 | T27: 1893.1454
C28: بريدان | D28: 948.22 | E28: 600 | F28: 187.95 | G28: 126.5 | H28: 1024.31 | I28: 1938.76 | K28: 10 | M28: 2896.98 | N28: 543.18375 | O28: 3440.16375 | P28: 861.85 | R28: 21.35235 | S28: 883.20235 | T28: 2556.9614
C29: سحالى | D29: 456.6 | E29: 600 | F29: 312.85 | G29: 124 | H29: 1155.64 | I29: 2192.49 | J29: 10 | K29: 10 | M29: 2669.09 | N29: 500.454375 | O29: 3169.544375 | P29: 794.05 | R29: 19.643175 | S29: 813.693175 | T29: 2355.8512
C30: سحالى | D30: 380 | E30: 600 | F30: 106.9 | G30: 124 | H30: 925.78 | I30: 1756.68 | K30: 10 | M30: 2146.68 | N30: 402.5025 | O30: 2549.1825 | P30: 638.63 | R30: 15.7251 | S30: 654.3551 | T30: 1894.8274
C31: الجرادات | D31: 179.3 | E31: 600 | F31: 123.25 | G31: 124 | H31: 947.75 | I31: 1795 | J31: 10 | K31: 10 | L31: 146.21 | M31: 2140.51 | N31: 401.345625 | O31: 2541.855625 | P31: 636.8 | R31: 15.678825 | S31: 652.478825 | T31: 1889.3768
C32: الجرادات | D32: 181.5 | E32: 600 | F32: 129.9 | G32: 126.5 | H32: 947.75 | I32: 1804.15 | J32: 8 | K32: 10 | L32: 136.86 | M32: 2140.51 | N32: 401.345625 | O32: 2541.855625 | P32: 636.8 | Q32: 500 | R32: 15.678825 | S32: 1152.478825 | T32: 1389.3768
C33: الجرادات | D33: 0 | E33: 600 | F33: 106 | G33: 124 | H33: 749 | I33: 1579 | K33: 10 | L33: 510 | M33: 2099 | N33: =M33*18.75% -> 393.5625 | O33: 2492.5625 | P33: 624.45 | R33: 15.3675 | S33: 639.8175 | T33: 1852.745
C34: كفرعزاز | D34: 140 | E34: 300 | F34: 106 | G34: 124 | H34: 760 | I34: =SUM(E34:H34) -> 1290 | J34: 0 | K34: 10 | M34: 1440 | N34: 270 | O34: 1710 | P34: 428.4 | R34: 10.425 | S34: 438.825 | T34: 1271.175
C35: جواد حسنى | D35: 380 | E35: 600 | F35: 106.9 | G35: 124 | H35: 793.36 | I35: =SUM(E35:H35) -> 1624.26 | J35: 4 | K35: 10 | L35: 281.74 | M35: 2300 | N35: 431.25 | O35: 2731.25 | P35: 684.25 | R35: =(M35-50)*7.5/1000 -> 16.875 | S35: 701.125 | T35: 2030.125
C36: ديرامس | D36: 344.3 | E36: 600 | F36: 96.9 | G36: 124 | H36: 969.18 | I36: 1790.08 | J36: 10 | K36: 10 | L36: 184.02 | M36: 2338.4 | N36: 438.45 | O36: 2776.85 | P36: 695.67 | R36: =(M36-50)*7.5/1000 -> 17.163 | S36: 712.833 | T36: 2064.017
C37: كفر حصام | D37: 404.15 | E37: 600 | F37: 187.5 | G37: 126.5 | H37: 971.52 | I37: 1885.52 | J37: 10 | K37: 10 | M37: 2309.67 | N37: 433.063125 | O37: 2742.733125 | P37: 687.12 | R37: 16.947525 | S37: 704.067525 | T37: 2038.6656
D38: 542 | E38: 300 | F38: 354.45 | G38: 121.15 | H38: 802.9 | I38: 1578.5 | J38: 10 | K38: 10 | M38: 2140.5 | N38: =M38*18.75% -> 401.34375 | O38: =SUM(M38:N38) -> 2541.84375 | P38: =ROUNDDOWN(M38*29.75%,2) -> 636.79 | R38: 15.67875 | S38: =SUM(P38:R38) -> 652.46875 | T38: =O38-S38 -> 1889.375
C39: كوم القناطر | D39: 358 | E39: 600 | F39: 141.15 | G39: 124 | H39: 868.48 | I39: 1733.63 | J39: 10 | K39: 10 | L39: 220.19 | M39: 2331.82 | N39: 437.21625 | O39: 2769.03625 | P39: 693.71 | R39: 17.11365 | S39: 710.82365 | T39: 2058.2126
C40: معاش | D40: 1620.18 | E40: 600 | F40: 398.1 | G40: 144.95 | H40: 1489.66 | I40: 2632.71 | J40: 10 | K40: 10 | M40: 4272.89 | N40: 801.166875 | O40: 5074.056875 | P40: 1271.18 | R40: 31.671675 | S40: 1302.851675 | T40: 3771.2052
C41: قافلة | D41: 1200 | E41: 600 | F41: 106 | G41: 124 | H41: 1156.338 | I41: 1986.338 | K41: 10 | M41: =SUM(I41:L41)+D41 -> 3196.338 | N41: =M41*18.75% -> 599.313375 | O41: =SUM(M41:N41) -> 3795.651375 | P41: =ROUNDDOWN(M41*29.75%,2) -> 950.91 | R41: 23.597535 | S41: =SUM(P41:R41) -> 974.507535 | T41: =O41-S41 -> 2821.14384
C42: محلة كيل | D42: 407.4 | E42: 600 | F42: 212.9 | G42: 124 | H42: 863.68 | I42: 1800.58 | J42: 10 | K42: 10 | M42: 2227.98 | N42: =M42*18.75% -> 417.74625 | O42: 2645.72625 | P42: 662.82 | R42: =(M42-50)*7.5/1000 -> 16.33485 | S42: 679.15485 | T42: 1966.5714
C43: محلة كيل | D43: 340 | E43: 600 | F43: 96.9 | G43: 124 | H43: 799.57 | I43: 1620.47 | J43: 10 | K43: 10 | M43: 1980.47 | N43: =M43*18.75% -> 371.338125 | O43: 2351.808125 | P43: 589.18 | R43: =(M43-50)*7.5/1000 -> 14.478525 | S43: 603.658525 | T43: 1748.1496
C44: بلقطر الشرقية | D44: 420 | E44: 600 | F44: 220 | G44: 124 | H44: 762.77 | I44: =SUM(E44:H44) -> 1706.77 | K44: 10 | L44: 280.33 | M44: 2417.1 | N44: 453.20625 | O44: 2870.30625 | P44: 719.08 | R44: =(M44-50)*7.5/1000 -> 17.75325 | S44: 736.83325 | T44: 2133.473
C45: بلقطر الغربية | D45: 402 | E45: 600 | F45: 252.55 | G45: 124 | H45: 809.93 | I45: =SUM(E45:H45) -> 1786.48 | J45: 10 | K45: 10 | M45: 2208.48 | N45: 414.09 | O45: 2622.57 | P45: 657.02 | R45: 16.1886 | S45: 673.2086 | T45: 1949.3614
C46: بلقطر الغربية | D46: 352 | E46: 600 | F46: 140.55 | G46: 124 | H46: 768.27 | I46: 1632.82 | J46: 10 | K46: 10 | L46: 112.97 | M46: 2117.79 | N46: 397.085625 | O46: 2514.875625 | P46: 630.04 | R46: 15.508425 | S46: 645.548425 | T46: 1869.3272
C47: روضة خيرى | D47: 561.5 | E47: 600 | F47: 280.95 | G47: 124 | H47: 1031.66 | I47: 2036.61 | J47: 10 | K47: 10 | M47: 2618.11 | N47: 490.895625 | O47: 3109.005625 | P47: 778.88 | R47: 19.260825 | S47: 798.140825 | T47: 2310.8648
C48: روضة خيرى | D48: 909.7 | E48: 600 | F48: 187.45 | G48: 126.5 | H48: 1002.26 | I48: 1916.21 | J48: 10 | K48: 10 | M48: 2845.91 | N48: 533.608125 | O48: 3379.518125 | P48: 846.65 | R48: 20.969325 | S48: 867.619325 | T48: 2511.8988
C49: روضة خيرى | D49: 255 | E49: 600 | F49: 96.9 | G49: 124 | H49: 964.28 | I49: 1785.18 | K49: 10 | L49: 62.9 | M49: 2113.08 | N49: 396.2025 | O49: 2509.2825 | P49: 628.64 | R49: 15.4731 | S49: 644.1131 | T49: 1865.1694
C50: بطورس | D50: 348 | E50: 600 | F50: 263.25 | G50: 51 | H50: 971.52 | I50: 1885.77 | J50: 10 | K50: 10 | M50: 2253.77 | N50: 422.581875 | O50: 2676.351875 | P50: 670.49 | R50: =(M50-50)*7.5/1000 -> 16.528275 | S50: 687.018275 | T50: 1989.3336
C51: بطورس | D51: 406 | E51: 600 | F51: 290.95 | G51: 122 | H51: 879.64 | I51: 1892.59 | J51: 6 | K51: 10 | M51: 2314.59 | N51: 433.985625 | O51: 2748.575625 | P51: 688.59 | R51: 16.984425 | S51: 705.574425 | T51: 2043.0012
C52: الزينى | D52: 85 | E52: 600 | F52: 96.9 | G52: 124 | H52: 999.81 | I52: =SUM(E52:H52) -> 1820.71 | J52: 10 | K52: 10 | L52: 414.7 | M52: 2340.41 | N52: 438.826875 | O52: 2779.236875 | P52: 696.27 | R52: 17.178075 | S52: 713.448075 | T52: 2065.7888
C53: الغابة | D53: 280 | E53: 600 | F53: 187.75 | G53: 124 | H53: 619 | I53: 1530.75 | J53: 10 | K53: 10 | L53: 104.6 | M53: 1935.35 | N53: 362.878125 | O53: 2298.228125 | P53: 575.76 | R53: 14.140125 | S53: 589.900125 | T53: 1708.328
C54: ابويوسف | D54: 984.6 | E54: 600 | F54: 144.9 | G54: 126.5 | H54: 1045.13 | I54: 1916.53 | J54: 8 | K54: 10 | M54: 2919.13 | N54: 547.336875 | O54: 3466.466875 | P54: 868.44 | R54: 21.518475 | S54: 889.958475 | T54: 2576.5084
C55: زاوية نعيم | D55: 384.75 | E55: 600 | F55: 188.05 | G55: 126.5 | H55: 1022.47 | I55: 1937.02 | J55: 10 | K55: 10 | L55: 0.12 | M55: 2341.89 | N55: 439.104375 | O55: 2780.994375 | P55: 696.71 | R55: 17.189175 | S55: 713.899175 | T55: 2067.0952
C56: زاوية نعيم | D56: 338 | E56: 600 | F56: 139.15 | G56: 124 | H56: 987.55 | I56: 1850.7 | J56: 10 | K56: 10 | M56: 2208.7 | N56: 414.13125 | O56: 2622.83125 | P56: 657.08 | R56: 16.19025 | S56: 673.27025 | T56: 1949.561
C57: الصخرة | D57: 1113 | E57: 600 | F57: 148 | G57: 126.5 | H57: 1122.21 | I57: 1996.71 | J57: 10 | K57: 10 | M57: 3129.71 | N57: 586.820625 | O57: 3716.530625 | P57: 931.08 | R57: 23.097825 | S57: 954.177825 | T57: 2762.3528
C58: قنديل | D58: 380 | E58: 600 | F58: 106 | G58: 124 | H58: 1238.75 | I58: 2068.75 | J58: 10 | K58: 10 | L58: 182.84 | M58: 2651.59 | N58: 497.173125 | O58: 3148.763125 | P58: 788.84 | R58: 19.511925 | S58: 808.351925 | T58: 2340.4112
C59: المشتركة (خاص) | F59: 106.25 | G59: 458.75 | H59: 712.3739 | I59: =SUM(F59:H59) -> 1277.3739 | J59: 8 | K59: 10 | M59: 1295.3739 | N59: 242.8826063 | O59: 1538.256506 | P59: 385.37 | R59: =(M59-50)*7.5/1000 -> 9.34030425 | S59: 394.7103042 | T59: 1143.546202
C60: المشتركة | D60: =H60*2 -> 2851.04 | E60: 600 | F60: 337.3 | G60: 312.9 | H60: 1425.52 | I60: =SUM(F60:H60) -> 2075.72 | J60: 10 | K60: 10 | M60: 4946.76 | N60: 927.5175 | O60: =SUM(M60:N60)+E60 -> 6474.2775 | P60: 1471.66 | Q60: 250 | R60: =(M60-50)*7.5/1000 -> 36.7257 | S60: 1758.3857 | T60: 4715.8918
C61: المشتركة | D61: =H61*2 -> 2547.88 | E61: 600 | F61: 293.05 | G61: 294.9 | H61: 1273.94 | I61: =SUM(F61:H61) -> 1861.89 | J61: 10 | K61: 10 | M61: 4429.77 | N61: 830.581875 | O61: =SUM(M61:N61)+E61 -> 5860.351875 | P61: 1317.85 | Q61: 250 | R61: =(M61-50)*7.5/1000 -> 32.848275 | S61: 1600.698275 | T61: 4259.6536
C62: المشتركة | D62: =H62*2 -> 2547.88 | E62: 600 | F62: 293.05 | G62: 294.9 | H62: 1273.94 | I62: =SUM(F62:H62) -> 1861.89 | J62: 10 | K62: 10 | M62: 4429.77 | N62: 830.581875 | O62: =SUM(M62:N62)+E62 -> 5860.351875 | P62: 1317.85 | R62: =(M62-50)*7.5/1000 -> 32.848275 | S62: 1350.698275 | T62: 4509.6536
C63: دسونس | D63: 285 | E63: 600 | F63: 106.9 | G63: 124 | H63: 1013.28 | I63: =SUM(E63:H63) -> 1844.18 | K63: 10 | L63: 177.11 | M63: 2316.29 | N63: 434.304375 | O63: 2750.594375 | P63: 689.09 | R63: =(M63-50)*7.5/1000 -> 16.997175 | S63: 706.087175 | T63: 2044.5072
C64: راضى | D64: 170 | E64: 300 | F64: 96.9 | G64: 124 | H64: 519.26 | I64: 1040.16 | J64: 10 | K64: 10 | L64: 1069.84 | M64: 2300 | N64: 431.25 | O64: 2731.25 | P64: 684.25 | R64: =(M64-50)*7/1000 -> 15.75 | S64: =SUM(P64:R64) -> 700 | T64: =O64-S64 -> 2031.25
C65: الزينى | D65: 1010 | E65: 600 | F65: 106 | G65: 124 | H65: 1059.67 | I65: 1889.67 | K65: 10 | M65: =SUM(I65:L65)+D65 -> 2909.67 | N65: =M65*18.75% -> 545.563125 | O65: =SUM(M65:N65) -> 3455.233125 | P65: 865.62 | R65: =(M65-50)*7.5/1000 -> 21.447525 | S65: 887.067525 | T65: 2568.1656
C66: ط.برسيق | D66: 220 | E66: 600 | F66: 220 | G66: 124 | H66: 732.75 | I66: 1676.75 | K66: 10 | M66: 1906.75 | N66: =M66*18.75% -> 357.515625 | O66: 2264.265625 | P66: =ROUNDDOWN(M66*29.75%,2) -> 567.25 | R66: =(M66-50)*7.5/1000 -> 13.925625 | S66: =SUM(P66:R66) -> 581.175625 | T66: =O66-S66 -> 1683.09
C67: القروى | D67: 448 | E67: 600 | F67: 294.25 | G67: 124 | H67: 804.36 | I67: 1822.61 | J67: 4 | K67: 10 | M67: =SUM(I67:L67)+D67 -> 2284.61 | N67: 428.364375 | O67: 2712.974375 | P67: 679.67 | R67: =(M67-50)*7.5/1000 -> 16.759575 | S67: 696.429575 | T67: 2016.5448
C68: القروى | D68: 0 | E68: 600 | F68: 220 | G68: 124 | H68: 646.37 | I68: 1590.37 | K68: 10 | M68: 1600.37 | N68: 300.069375 | O68: 1900.439375 | P68: 476.11 | R68: =(M68-50)*7/1000 -> 10.85259 | S68: 486.96259 | T68: 1413.476785
C69: سحالى | D69: 282.5 | E69: 600 | F69: 106 | G69: 124 | H69: 1048.12 | I69: 1878.12 | J69: 10 | K69: 10 | M69: 2180.62 | N69: 408.86625 | O69: 2589.48625 | P69: 648.73 | R69: =(M69-50)*7.5/1000 -> 15.97965 | S69: 664.70965 | T69: 1924.7766
C70: بركة غطاس | D70: 280 | E70: 600 | F70: 220 | G70: 124 | H70: 636.01 | I70: 1580.01 | K70: 10 | L70: 511 | M70: 2381.01 | N70: =M70*18.75% -> 446.439375 | O70: 2827.449375 | P70: 708.35 | R70: 17.482575 | S70: 725.832575 | T70: =O70-S70 -> 2101.6168
C71: المشتركة | D71: =H71*2 -> 2194.38 | E71: 600 | F71: 106.25 | G71: 458.75 | H71: 1097.19 | I71: =SUM(F71:H71) -> 1662.19 | K71: 10 | M71: 3866.57 | N71: 724.981875 | O71: =SUM(M71:N71)+E71 -> 5191.551875 | P71: 1150.3 | Q71: 250 | R71: 28.624275 | S71: 1428.924275 | T71: 3762.6276
C72: كفر حصام | D72: 505 | E72: 600 | F72: 106 | G72: 124 | H72: 1102.53 | I72: =SUM(E72:H72) -> 1932.53 | K72: 10 | M72: 2447.53 | N72: 458.911875 | O72: =SUM(M72:N72) -> 2906.441875 | P72: 728.14 | R72: 17.981475 | S72: 746.121475 | T72: 2160.3204
C73: كوم القناطر | D73: 1010 | E73: 600 | F73: 106 | G73: 124 | H73: 1021.85 | I73: =SUM(E73:H73) -> 1851.85 | K73: 10 | M73: =SUM(I73:L73)+D73 -> 2871.85 | N73: 538.471875 | O73: =SUM(M73:N73) -> 3410.321875 | P73: 854.37 | R73: 21.163875 | S73: 875.533875 | T73: 2534.788
C74: المشتركة | D74: =H74*2 -> 2442.6 | E74: 600 | F74: 106.25 | G74: 458.75 | H74: 1221.3 | I74: =SUM(F74:H74) -> 1786.3 | K74: 10 | M74: 4238.9 | N74: 794.79375 | O74: =SUM(M74:N74)+E74 -> 5633.69375 | P74: 1261.07 | R74: 31.41675 | S74: 1292.48675 | T74: 4341.207
C75: المشتركة | D75: =H75*2 -> 2816.32 | E75: 600 | F75: 106.25 | G75: 458.75 | H75: 1408.16 | I75: =SUM(F75:H75) -> 1973.16 | K75: 10 | M75: 4799.48 | N75: =M75*18.75% -> 899.9025 | O75: =SUM(M75:N75)+E75 -> 6299.3825 | P75: 1427.84 | R75: 35.6211 | S75: 1463.4611 | T75: 4835.9214
C76: التمويل | D76: =H76*2 -> 2442.6 | E76: 600 | F76: 106.25 | G76: 458.75 | H76: 1221.3 | I76: =SUM(F76:H76) -> 1786.3 | K76: 10 | M76: 4238.9 | N76: =M76*18.75% -> 794.79375 | O76: =SUM(M76:N76)+E76 -> 5633.69375 | P76: 1261.07 | Q76: 250 | R76: 31.41675 | S76: 1542.48675 | T76: 4091.207
C77: صندوق التمويل | D77: =H77*2 -> 1950.46 | E77: 600 | F77: 310.45 | G77: 320.8 | H77: 975.23 | I77: =SUM(F77:H77) -> 1606.48 | J77: 10 | K77: 10 | M77: 3576.94 | N77: 670.67625 | O77: =SUM(M77:N77)+E77 -> 4847.61625 | P77: 1064.13 | Q77: 250 | R77: =(M77-50)*7.5/1000 -> 26.45205 | S77: 1340.58205 | T77: 3507.0342 | W77: =H77*7% -> 68.2661 | X77: =H77+W77 -> 1043.4961 | Y77: =W77*7 -> 477.8627
C78: المشتركة | D78: =H78*2 -> 2329.22 | E78: 600 | F78: 106.25 | G78: 458.75 | H78: 1164.61 | I78: =SUM(F78:H78) -> 1729.61 | K78: 10 | M78: 4068.83 | N78: 762.905625 | O78: =SUM(M78:N78)+E78 -> 5431.735625 | P78: 1210.47 | R78: 30.141225 | S78: 1240.611225 | T78: 4191.1244
C79: بركة غطاس | D79: 310 | E79: 600 | F79: 106 | G79: 124 | H79: 1156.34 | I79: =SUM(E79:H79) -> 1986.34 | K79: 10 | M79: 2306.34 | N79: 432.43875 | O79: =SUM(M79:N79) -> 2738.77875 | P79: 686.13 | R79: 16.92255 | S79: 703.05255 | T79: 2035.7262
C80: التمويل | D80: =H80*2 -> 2311.34 | E80: 600 | F80: 106.25 | G80: 458.75 | H80: 1155.67 | I80: =SUM(F80:H80) -> 1720.67 | K80: 10 | M80: =SUM(I80:L80)+D80 -> 4042.01 | N80: =M80*18.75% -> 757.876875 | O80: =SUM(M80:N80)+E80 -> 5399.886875 | P80: =ROUNDDOWN(M80*29.75%,2) -> 1202.49 | R80: 29.940075 | S80: =SUM(P80:R80) -> 1232.430075 | T80: =O80-S80 -> 4167.4568
C81: بطورس | D81: 280 | E81: 600 | F81: 106 | G81: 124 | H81: 1107.45 | I81: =SUM(E81:H81) -> 1937.45 | K81: 10 | M81: 2227.45 | N81: 417.646875 | O81: =SUM(M81:N81) -> 2645.096875 | P81: 662.66 | R81: 16.330875 | S81: 678.990875 | T81: 1966.106
C82: الزينى | D82: 280 | E82: 600 | F82: 106 | G82: 124 | H82: 1107.45 | I82: 1937.45 | K82: 10 | M82: 2227.45 | N82: 417.646875 | O82: 2645.096875 | P82: 662.66 | R82: 16.330875 | S82: 678.990875 | T82: 1966.106
C83: المشتركة | D83: =H83*2 -> 2312.68 | E83: 600 | F83: 106.25 | G83: 458.75 | H83: 1156.34 | I83: =SUM(F83:H83) -> 1721.34 | K83: 10 | M83: 4044.02 | N83: 758.25375 | O83: =SUM(M83:N83)+E83 -> 5402.27375 | P83: 1203.09 | Q83: 250 | R83: 29.95515 | S83: 1483.04515 | T83: 3919.2286
C84: بطورس | D84: 350 | E84: 600 | F84: 106 | G84: 124 | H84: 1144.9 | I84: 1974.9 | K84: 10 | M84: 2334.9 | N84: 437.79375 | O84: 2772.69375 | P84: 694.63 | R84: =(M84-50)*7.5/1000 -> 17.13675 | S84: 711.76675 | T84: 2060.927
C85: ديرامس | D85: 140 | E85: 600 | F85: 106 | G85: 124 | H85: 1107.45 | I85: =SUM(E85:H85) -> 1937.45 | K85: 10 | M85: 2087.45 | N85: 391.396875 | O85: 2478.846875 | P85: =ROUNDDOWN(M85*29.75%,2) -> 621.01 | R85: =(M85-50)*7.5/1000 -> 15.280875 | S85: =SUM(P85:R85) -> 636.290875 | T85: =O85-S85 -> 1842.556
C86: محلة كيل | D86: 140 | E86: 600 | F86: 106 | G86: 124 | H86: 946.95 | I86: 1776.95 | K86: 10 | M86: 1926.95 | N86: 361.303125 | O86: 2288.253125 | P86: =ROUNDDOWN(M86*29.75%,2) -> 573.26 | R86: =(M86-50)*7.5/1000 -> 14.077125 | S86: =SUM(P86:R86) -> 587.337125 | T86: =O86-S86 -> 1700.916
C87: قنديل | D87: 350 | E87: 600 | F87: 106 | G87: 124 | H87: 1144.9 | I87: =SUM(E87:H87) -> 1974.9 | K87: 10 | M87: 2334.9 | N87: 437.79375 | O87: 2772.69375 | P87: =ROUNDDOWN(M87*29.75%,2) -> 694.63 | R87: =(M87-50)*7.5/1000 -> 17.13675 | S87: =SUM(P87:R87) -> 711.76675 | T87: =O87-S87 -> 2060.927
C88: ابوكبارية | D88: 1978 | E88: 600 | F88: 106 | G88: 124 | H88: 1058.23 | I88: 1888.23 | K88: 10 | M88: 3876.23 | N88: 726.793125 | O88: 4603.023125 | P88: 1153.17 | R88: =(M88-50)*7.5/1000 -> 28.696725 | S88: 1181.866725 | T88: 3421.1564
C89: ابويوسف | E89: 600 | F89: 106 | G89: 124 | H89: 743.65 | I89: 1573.65 | K89: 10 | M89: =SUM(I89:L89)+D89 -> 1583.65 | N89: =M89*18.75% -> 296.934375 | O89: =SUM(M89:N89) -> 1880.584375 | P89: =ROUNDDOWN(M89*29.75%,2) -> 471.13 | R89: =(M89-50)*7.5/1000 -> 11.502375 | S89: =SUM(P89:R89) -> 482.632375 | T89: =O89-S89 -> 1397.952
C90: دسونس | D90: 100 | E90: 600 | F90: 106 | G90: 124 | H90: 1064.65 | I90: 1894.65 | K90: 10 | M90: 2004.65 | N90: 375.871875 | O90: =SUM(M90:N90) -> 2380.521875 | P90: 596.38 | R90: 14.659875 | S90: 611.039875 | T90: 1769.482
C91: كوم القناطر | D91: 175 | E91: 600 | F91: 106 | G91: 124 | H91: 1144.9 | I91: 1974.9 | K91: 10 | M91: 2159.9 | N91: 404.98125 | O91: =SUM(M91:N91) -> 2564.88125 | P91: 642.57 | R91: 15.82425 | S91: 658.39425 | T91: 1906.487
C92: المشتركة | D92: =H92*2 -> 1845.48 | E92: 600 | F92: 106.25 | G92: 458.75 | H92: 922.74 | I92: =SUM(F92:H92) -> 1487.74 | J92: 8 | K92: 10 | M92: 3351.22 | N92: 628.35375 | O92: =SUM(M92:N92)+E92 -> 4579.57375 | P92: 996.98 | R92: 24.75915 | S92: 1021.73915 | T92: 3557.8346
C93: التمويل | D93: =H93*2 -> 2070 | E93: 600 | F93: 106.25 | G93: 458.75 | H93: 1035 | I93: =SUM(F93:H93) -> 1600 | K93: 10 | M93: =SUM(I93:L93)+D93 -> 3680 | N93: =M93*18.75% -> 690 | O93: =SUM(M93:N93)+E93 -> 4970 | P93: =ROUNDDOWN(M93*29.75%,2) -> 1094.8 | R93: 27.225 | S93: =SUM(P93:R93) -> 1122.025 | T93: =O93-S93 -> 3847.975
D94: 0 | E94: 0 | F94: 472.9 | G94: 157.25 | H94: 933.71 | I94: =SUM(E94:H94) -> 1563.86 | J94: 10 | K94: 10 | M94: =SUM(I94:L94)+D94 -> 1583.86 | N94: =M94*18.75% -> 296.97375 | O94: =SUM(M94:N94) -> 1880.83375 | P94: =ROUNDDOWN(M94*29.75%,2) -> 471.19 | R94: 11.50395 | S94: =SUM(P94:R94) -> 482.69395 | T94: =O94-S94 -> 1398.1398
C95: الجرن | D95: 175 | E95: 600 | F95: 106 | G95: 124 | H95: 1144.9 | I95: =SUM(E95:H95) -> 1974.9 | K95: 10 | L95: 140.1 | M95: 2300 | N95: 431.25 | O95: =SUM(M95:N95) -> 2731.25 | P95: 684.25 | R95: 16.875 | S95: 701.125 | T95: 2030.125
C96: سحالى | D96: 200 | E96: 600 | F96: 106 | G96: 124 | H96: 995 | I96: =SUM(E96:H96) -> 1825 | K96: 10 | M96: =SUM(I96:L96)+D96 -> 2035 | N96: =M96*18.75% -> 381.5625 | O96: =SUM(M96:N96) -> 2416.5625 | P96: =ROUNDDOWN(M96*29.75%,2) -> 605.41 | R96: =(M96-50)*7.5/1000 -> 14.8875 | S96: =SUM(P96:R96) -> 620.2975 | T96: =O96-S96 -> 1796.265
C97: المشتركة | D97: =H97*2 -> 2060 | E97: 600 | F97: 106.25 | G97: 124 | H97: 1030 | I97: =SUM(E97:H97) -> 1860.25 | K97: 10 | M97: =SUM(I97:L97)+D97 -> 3930.25 | N97: =M97*18.75% -> 736.921875 | O97: =SUM(M97:N97) -> 4667.171875 | P97: =ROUNDDOWN(M97*29.75%,2) -> 1169.24 | R97: =(M97-50)*7.5/1000 -> 29.101875 | S97: =SUM(P97:R97) -> 1198.341875 | T97: =O97-S97 -> 3468.83
C98: بركة غطاس | E98: 600 | F98: 106 | G98: 124 | H98: 786.45 | I98: 1616.45 | K98: 10 | L98: 675 | M98: 2301.45 | N98: 431.521875 | O98: =SUM(M98:N98) -> 2732.971875 | P98: 684.68 | R98: =(M98-50)*7.5/1000 -> 16.885875 | S98: 701.565875 | T98: 2031.406
C99: الاجمالى | D99: =SUMIF($C$9:$C$98,$B$5,D9:D98) -> 170 | E99: =SUMIF($C$9:$C$98,$B$5,E9:E98) -> 300 | F99: =SUMIF($C$9:$C$98,$B$5,F9:F98) -> 96.9 | G99: =SUMIF($C$9:$C$98,$B$5,G9:G98) -> 124 | H99: 519.26 | I99: =SUMIF($C$9:$C$98,$B$5,I9:I98) -> 1040.16 | J99: 10 | K99: 10 | M99: =SUMIF($C$9:$C$98,$B$5,M9:M98) -> 2300 | N99: =SUMIF($C$9:$C$98,$B$5,N9:N98) -> 431.25 | O99: =SUMIF($C$9:$C$98,$B$5,$O$9:$O$98) -> 2731.25 | P99: =SUMIF($C$9:$C$98,$B$5,P9:P98) -> 684.25 | Q99: =SUMIF($C$9:$C$98,$B$5,Q9:Q98) -> 0 | R99: =SUMIF($C$9:$C$98,$B$5,R9:R98) -> 15.75 | S99: =SUMIF($C$9:$C$98,$B$5,S9:S98) -> 700 | T99: =SUMIF($C$9:$C$98,$B$5,T9:T98) -> 2031.25
B101: صرفت المرتبات بمعرفتى | G101: المختص | J101: رئيس الحسابات | P101: المدير المالي | S101: رئيس مجلس الادارة

Sheet القروض الشهرية
C3: السلف الخاصة بالعاملين على الحساب الجارى
A5: م | B5: الاسم | C5: أسم الجمعية | D5: التاريخ المحضر | E5: بداية التنفيذ | F5: أخر شهر مستحق عليه | G5: مبلغ السلفة | H5: تقسيم المبلغ شهرياً | I5: عدد الشهور | J5: الإجمالى | K5: الملاحظات
A7: 1 | B7: محمود نعيم بريك | C7: أبويوسف | D7: 2020-07-27 | E7: شهر أغسطس 2020 | F7: شهر يناير2022 | G7: 4000 | H7: 222.25 | I7: 18 | J7: =H7*I7 -> 4000.5 | K7: أخر شهر يكون 221.75 جنية فقط | L7: خالص
A8: 2 | B8: مصطفى على أحمد سليمان | C8: المشتركة | D8: 2021-02-06 | E8: شهر فبراير 2021 | F8: شهر يناير2022 | G8: 2000 | H8: 170 | I8: 12 | J8: 2040 | K8: أخر شهر يكون 130 جنية فقط | L8: خالص
A9: 3 | B9: أحمد سعد عطية إبراهيم | C9: التمويل | D9: 2021-03-13 | E9: شهر مارس 2021 | F9: شهرفبراير2022 | G9: 3500 | H9: 300 | I9: 12 | J9: 3600 | K9: أخر شهر يكون 200 جنية فقط | L9: خالص
A10: 4 | B10: حاتم رأفت أبوشليل | C10: المشتركة | D10: 2020-03-22 | E10: شهر مارس 2021 | F10: شهرفبراير2022 | G10: 2000 | H10: 170 | I10: 12 | J10: =H10*I10 -> 2040 | K10: أخر شهر يكون 130 جنية فقط
A11: 6 | B11: تامر محفوظ محمد محمود | C11: المشتركة | D11: 2021-12-18 | E11: شهر أكتوبر 2021 | F11: شهرسبتمبر 2022 | G11: 3000 | H11: 250 | I11: 12 | J11: =H11*I11 -> 3000 | K11: أخر شهر يكون 250 جنية فقط | L11: خالص
A12: 8 | B12: حاتم رأفت أبوشليل | C12: المشتركة | D12: 2021-09-01 | E12: شهر سبتمبر 2022 | F12: شهر أغسطس2023 | G12: 3000 | H12: 250 | I12: 12 | J12: =H12*I12 -> 3000 | K12: أخر شهر يكون 250 جنية فقط | L12: خالص
A13: 5 | B13: حاتم رأفت أبوشليل | C13: المشتركة | D13: 2021-11-06 | E13: شهر نوفمبر 2022 | F13: شهرأكتوبر2022 | G13: 3000 | H13: 250 | I13: 12 | J13: 3000 | K13: أخر شهر يكون 250 جنية فقط | L13: خالص
A14: 7 | B14: مصطفى على أحمد سليمان | C14: المشتركة | D14: 2022-03-05 | E14: شهر مارس 2022 | F14: شهر فبراير 2023 | G14: 3000 | H14: 250 | I14: 12 | J14: 3000 | K14: أخر شهر يكون 250 جنية فقط | L14: خالص
A15: 9 | B15: أيمن محمد محمد حسن | C15: المشتركة | D15: 2022-10-01 | E15: شهر أكتوبر 2022 | F15: شهر سبتمبر 2023 | G15: 3000 | H15: 250 | I15: 12 | J15: 3000 | K15: أخر شهر يكون 250 جنية فقط | L15: خالص
A16: 10 | B16: محمد السيد السيد الشرنوبى | C16: المشتركة | D16: 2022-11-19 | E16: شهر نوفمبر 2022 | F16: شهر ديسمبر 2023 | G16: 3000 | H16: 250 | I16: 12 | J16: 3000 | K16: أخر شهر يكون 250 جنية فقط | L16: يتم خصم 250 جنيه شهر ديسمبر 2023 بسبب انه عليها 250 قرض قديم لشهر ديسمبر 2022
A17: 11 | B17: حاتم رأفت أبوشليل | C17: المشتركة | D17: 2021-09-01 | E17: شهر مارس 2023 | F17: شهر فبراير 2024 | G17: 3000 | H17: 250 | I17: 12 | J17: =H17*I17 -> 3000 | K17: أخر شهر يكون 250 جنية فقط
A18: 12 | B18: مصطفى على أحمد سليمان | C18: المشتركة | D18: 2022-03-05 | E18: شهر مارس 2023 | F18: شهر فبراير 2024 | G18: 3000 | H18: 250 | I18: 12 | J18: 3000 | K18: أخر شهر يكون 250 جنية فقط
A19: 13 | B19: أيهاب أحمد جويدة | C19: المشتركة | D19: 2023-06-01 | E19: شهر يونيو 2023 | F19: شهر مايو 2024 | G19: 3000 | H19: 250 | I19: 12 | J19: 3000 | K19: أخر شهر يكون 250 جنية فقط
A20: 14 | B20: أحمد سعد عطية إبراهيم | C20: المشتركة | D20: 2023-07-01 | E20: شهر يوليو 2023 | F20: شهر يونيو 2024 | G20: 3000 | H20: 250 | I20: 12 | J20: 3000 | K20: أخر شهر يكون 250 جنية فقط
A21: 15 | B21: محمود محمد عبدالله قطب نمر | C21: المشتركة | D21: 2023-10-01 | E21: شهر أكتوبر 2023 | F21: شهر سبتمبر 2024 | G21: 3000 | H21: 250 | I21: 12 | J21: 3000 | K21: أخر شهر يكون 250 جنية فقط
A22: 16 | B22: أيمن محمد محمد حسن | C22: المشتركة | D22: 2022-10-01 | E22: شهر أكتوبر 2022 | F22: شهر سبتمبر 2024 | G22: 3000 | H22: 250 | I22: 12 | J22: 3000 | K22: أخر شهر يكون 250 جنية فقط
A23: 17 | B23: محمد السيد السيد الشرنوبى | C23: صندوق التمويل | D23: 2023-12-21 | E23: شهر يناير 2024 | F23: شهر ديسمبر 2024 | G23: 3000 | H23: 250 | I23: 12 | J23: 3000 | K23: أخر شهر يكون 250 جنية فقط
A24: 18 | B24: تامر محفوظ محمد محمود | C24: المشتركة | E24: شهر يناير 2024 | F24: شهر ديسمبر 2024 | G24: 3000 | H24: 250 | I24: 12 | J24: 3000 | K24: أخر شهر يكون 250 جنية فقط
A25: 19 | B25: مصطفى على أحمد سليمان | C25: المشتركة | D25: 2024-03-02 | E25: شهر مارس 2024 | F25: شهر فبراير 2025 | G25: 3000 | H25: 250 | I25: 12 | J25: 3000 | K25: أخر شهر يكون 250 جنية فقط
A26: 20 | B26: محمد على محمد عيسى | C26: ابوكبارية | D26: 2024-03-25 | E26: شهر ابريل 2024 | F26: شهر مارس 2025 | G26: 3000 | H26: 250 | I26: 12 | J26: 3000 | K26: أخر شهر يكون 250 جنية فقط
A27: 21 | B27: حاتم رأفت أبوشليل | C27: المشتركة | D27: 44440 | E27: شهر مارس 2023 | F27: شهر فبراير 2025 | G27: 3000 | H27: 250 | I27: 12 | J27: =H27*I27 -> 3000 | K27: أخر شهر يكون 250 جنية فقط
A28: 22 | B28: أيمن محمد محمد حسن | C28: المشتركة | D28: 2024-10-01 | E28: شهر أكتوبر 2024 | F28: شهر سبتمبر 2025 | G28: 3000 | H28: 250 | I28: 12 | J28: 3000 | K28: أخر شهر يكون 250 جنية فقط
A29: 23 | B29: محمود محمد عبدالله قطب نمر | C29: المشتركة | D29: 2024-10-01 | E29: شهر أكتوبر 2024 | F29: شهر سبتمبر 2025 | G29: 3000 | H29: 250 | I29: 12 | J29: 3000 | K29: أخر شهر يكون 250 جنية فقط
A30: 24 | B30: محمد السيد السيد الشرنوبى | C30: صندوق التمويل | D30: 2023-12-21 | E30: شهر يناير 2024 | F30: شهر ديسمبر 2025 | G30: 3000 | H30: 250 | I30: 12 | J30: 3000 | K30: أخر شهر يكون 250 جنية فقط
A31: 25 | B31: محمد محمود نصر عتمان | C31: التمويل | D31: 2023-12-22 | E31: شهر يناير 2025 | F31: شهر ديسمبر 2026 | G31: 3000 | H31: 250 | I31: 12 | J31: 3000 | K31: أخر شهر يكون 250 جنية فقط

Sheet العلاوات السنوية
I1: 2021 | L1: 2022 | P1: 2023
B2: م | C2: الجمعية | E2: 0.07 | F2: الأساسى بعد 2021/7/1 | G2: علاوة تشجعية | H2: الأساسى بعد العلاوة التشجعية 2021/7/1 | I2: 0.13 | J2: 13% بحد أدنى 75 | K2: الأساسى بعد 2021/7/1 | L2: 0.15 | M2: 15% بحد أدنى 100 | N2: الأساسى بعد 2022/4/1 | P2: علاوة غلاء معيشة 1/11/2022 | Q2: 15% بحد أدنى 125 | R2: الأساسى بعد 2022/4/1 | S2: 15% بحد أدنى 150 | T2: الأساسى بعد 2024/3/1 | U2: ملاحظات
B3: 1 | C3: بسنتواى | E3: =[1]Sheet2!AC7*7% -> 28.9184 | F3: =SUM(E3:E3) -> 28.9184 | G3: 0 | H3: 0 | I3: =F3*13% -> 3.759392 | J3: 75 | K3: =F3+J3 -> 103.9184 | L3: =K3*15% -> 15.58776 | M3: 100 | N3: =K3+M3 -> 203.9184 | Q3: 125 | R3: =Q3+N3 -> 328.9184
E4: =[1]Sheet2!AC8*7% -> 28.9184 | F4: 28.9184 | G4: 0 | H4: 0 | I4: =F4*13% -> 3.759392 | J4: 75 | K4: =F4+J4 -> 103.9184 | L4: =K4*15% -> 15.58776 | M4: 100 | N4: =K4+M4 -> 203.9184 | Q4: 125 | R4: =Q4+N4 -> 328.9184
A5: محمد | B5: 2 | C5: أبوهواش | E5: 0 | F5: 0 | G5: 0 | H5: 0 | I5: 0 | J5: 0 | K5: =F5+I5 -> 0 | L5: =K5*$L$2 -> 0 | M5: 100 | N5: =K5+M5 -> 100 | Q5: 125 | R5: =N5+Q5 -> 225
E6: 0 | F6: 0 | G6: 0 | H6: 0 | I6: 0 | J6: 0 | K6: =F6+J6 -> 0 | L6: =K6*$L$2 -> 0 | M6: 100 | N6: =K6+M6 -> 100
E7: 0 | F7: 0 | G7: 0 | H7: 0 | I7: 0 | J7: 0 | K7: 0 | L7: =K7*$L$2 -> 0 | M7: 100 | N7: 100
A8: فاطمة | E8: 0 | F8: 0 | G8: 0 | H8: 0 | I8: 0 | J8: 0 | K8: 0 | L8: =K8*$L$2 -> 0 | M8: 100 | N8: 100 | Q8: 125 | R8: =N8+Q8 -> 225
B9: 3 | C9: العشرة | E9: =[1]Sheet2!AC13*7% -> 31.0905 | F9: 31.0905 | G9: 0 | H9: 0 | I9: =F9*13% -> 4.041765 | J9: 75 | K9: 106.0905 | L9: =K9*15% -> 15.913575 | M9: 100 | N9: 206.0905 | Q9: 125 | R9: =N9+Q9 -> 331.0905
E10: =[1]Sheet2!AC14*7% -> 33.0379 | F10: 33.0379 | G10: 0 | H10: 0 | I10: 4.294927 | J10: 75 | K10: 108.0379 | L10: 16.205685 | M10: 100 | N10: 208.0379 | Q10: 125 | R10: =N10+Q10 -> 333.0379
E11: =[1]Sheet2!AC15*7% -> 34.0116 | F11: 34.0116 | G11: 0 | H11: 0 | I11: 4.421508 | J11: 75 | K11: 109.0116 | L11: 16.35174 | M11: 100 | N11: 209.0116 | Q11: 125 | R11: =N11+Q11 -> 334.0116
B12: 4 | C12: النخلة البحرية | E12: =[1]Sheet2!AC16*7% -> 36.5512 | F12: 36.5512 | G12: 0 | H12: 0 | I12: 4.751656 | J12: 75 | K12: 111.5512 | L12: 16.73268 | M12: 100 | N12: 211.5512 | O12: 75 | P12: =N12+O12 -> 286.5512 | Q12: 125 | R12: =P12+Q12 -> 411.5512
E13: =[1]Sheet2!AC17*7% -> 25.697 | F13: 25.697 | G13: 0 | H13: 0 | I13: 3.34061 | J13: 75 | K13: 100.697 | L13: 15.10455 | M13: 100 | N13: 200.697 | O13: 75 | P13: =N13+O13 -> 275.697 | Q13: 125 | R13: =P13+Q13 -> 400.697
E14: =[1]Sheet2!AC18*7% -> 10.8605 | F14: 10.8605 | G14: 0 | H14: 0 | I14: 1.411865 | J14: 75 | K14: 85.8605 | L14: 12.879075 | M14: 100 | N14: 185.8605 | O14: 75 | P14: =N14+O14 -> 260.8605 | Q14: 125 | R14: =P14+Q14 -> 385.8605
B15: 5 | C15: ابوكبارية | E15: =[1]Sheet2!AC19*7% -> 13.104 | F15: 13.104 | G15: 0 | H15: 0 | Q15: 125 | R15: =F15+Q15 -> 138.104
E16: 0 | F16: 0 | N16: 860 | O16: 0 | Q16: 0.15 | R16: 989
B17: 6 | C17: بريدان | E17: =[1]Sheet2!AC21*7% -> 34.5359 | F17: =SUM(E17:E17) -> 34.5359 | G17: 0 | H17: 0 | I17: 4.489667 | J17: 75 | K17: =F17+J17 -> 109.5359 | L17: =K17*15% -> 16.430385 | M17: 100 | N17: =K17+M17 -> 209.5359 | Q17: 125 | R17: =N17+Q17 -> 334.5359
E18: =[1]Sheet2!AC22*7% -> 30.5662 | F18: 30.5662 | G18: 0 | H18: 0 | I18: 3.973606 | J18: 75 | K18: =F18+J18 -> 105.5662 | L18: =K18*15% -> 15.83493 | M18: 100 | N18: =K18+M18 -> 205.5662 | Q18: 125 | R18: 330.5662
E19: =[1]Sheet2!AC23*7% -> 33.1877 | F19: 33.1877 | G19: 0 | H19: 0 | I19: 4.314401 | J19: 75 | K19: =F19+J19 -> 108.1877 | L19: =K19*15% -> 16.228155 | M19: 100 | N19: =K19+M19 -> 208.1877 | Q19: 125 | R19: 333.1877
B20: 7 | C20: طلمبات برسيق | E20: =[1]Sheet2!AC24*7% -> 40.7526 | F20: 40.7526 | G20: 0 | H20: 0 | I20: 5.297838 | J20: 0.13 | L20: =K21*15% -> 6.9075657 | M20: 0.15 | N20: =K21+L20 -> 52.9580037 | Q20: 125 | R20: 177.9580037
E21: =[1]Sheet2!AC25*7% -> 32.3638 | F21: 32.3638 | G21: 0 | H21: 0 | I21: 4.207294 | J21: 75 | K21: =F20+I20 -> 46.050438 | L21: 16.10457 | M21: 100 | N21: =K22+M21 -> 207.3638 | Q21: 125 | R21: 332.3638
E22: =[1]Sheet2!AC26*7% -> 31.9144 | F22: 31.9144 | G22: 0 | H22: 0 | I22: 4.148872 | J22: 75 | K22: =F21+J21 -> 107.3638 | L22: 16.03716 | M22: 100 | N22: =K23+M22 -> 206.9144 | Q22: 125 | R22: 331.9144
E23: =[1]Sheet2!AC27*7% -> 15.3615 | F23: 15.3615 | G23: 0 | H23: 0 | I23: 1.996995 | J23: 75 | K23: =F22+J22 -> 106.9144 | L23: 13.554225 | M23: 100 | N23: =K24+M23 -> 190.3615 | Q23: 125 | R23: 315.3615
B24: 8 | C24: بركة غطاس | E24: =[1]Sheet2!AC28*7% -> 38.955 | F24: 38.955 | G24: 0 | H24: 0 | I24: 5.06415 | J24: 0.13 | K24: =F23+J23 -> 90.3615 | L24: 6.6028725 | M24: 0.15 | N24: =K25+L24 -> 50.6220225 | Q24: 125 | R24: 175.6220225
E25: =[1]Sheet2!AC29*7% -> 9.45 | F25: 9.45 | G25: 0 | H25: 0 | I25: 1.2285 | J25: 75 | K25: =F24+I24 -> 44.01915 | L25: 12.6675 | M25: 100 | N25: =K26+M25 -> 184.45 | Q25: 125 | R25: 309.45
E26: 0 | F26: 0 | G26: 0 | H26: 0 | I26: 0 | J26: 0.13 | K26: =F25+J25 -> 84.45 | L26: 0 | M26: 0.15 | N26: =K27+L26 -> 0 | Q26: 125 | R26: 125
B27: 9 | C27: الغابة | E27: =[1]Sheet2!AC32*7% -> 19.8555 | F27: 19.8555 | G27: 0 | H27: 0 | I27: 2.581215 | J27: 75 | K27: =F26+I26 -> 0 | L27: =K28*$L$2 -> 14.228325 | M27: 100 | N27: =K28+M27 -> 194.8555
B28: 10 | C28: أبويوسف | E28: =[1]Sheet2!AC33*7% -> 35.21 | F28: 35.21 | G28: 0 | H28: 0 | I28: 4.5773 | J28: 75 | K28: =F27+J27 -> 94.8555 | L28: =K29*$L$2 -> 16.5315 | M28: 100 | N28: 210.21 | Q28: 0 | R28: 0 | S28: 150
E29: =[1]Sheet2!AC34*7% -> 34.461 | F29: 34.461 | G29: 0 | H29: 0 | I29: 4.47993 | J29: 75 | K29: 110.21 | L29: =K30*$L$2 -> 16.41915 | M29: 100 | N29: 209.461 | Q29: 125 | R29: =N29+Q29 -> 334.461 | S29: 150
B30: 11 | C30: برسيق | E30: =[1]Sheet2!AC35*7% -> 33.95 | F30: 33.95 | G30: 0 | H30: 0 | I30: 4.4135 | J30: 0 | K30: 109.461 | L30: =K31*L2 -> 5.0925 | M30: 100 | N30: 133.95
B31: 12 | C31: القروى | E31: =[1]Sheet2!AC36*7% -> 19.74 | F31: 19.74 | G31: 0 | H31: 0 | I31: 2.5662 | J31: 75 | K31: 33.95 | L31: =K32*$L$2 -> 14.211 | M31: 100 | N31: 194.74 | Q31: 125 | R31: =N31+Q31 -> 319.74
E32: =[1]Sheet2!AC37*7% -> 10.08 | F32: 10.08 | G32: 0 | H32: 0 | I32: 1.3104 | J32: 75 | K32: 94.74 | L32: =K33*$L$2 -> 12.762 | M32: 100 | N32: 185.08 | Q32: 125 | R32: 310.08
B33: 13 | C33: سحالى | E33: =[1]Sheet2!AC38*7% -> 40.5279 | F33: 40.5279 | G33: 0 | H33: 0 | I33: 5.268627 | J33: 0.13 | K33: 85.08 | L33: =K34*15% -> 6.86947905 | M33: 0.15 | N33: =K34+L33 -> 52.66600605 | Q33: 125 | R33: 177.6660061 | U33: فقط نبيل فتحى محمدعبدالقادر في الجمعية | V33: =N33-R33 -> -125
E34: =[1]Sheet2!AC39*7% -> 32.0642 | F34: 32.0642 | G34: 0 | H34: 0 | I34: 0 | J34: 0 | K34: =F33+I33 -> 45.796527 | L34: 4.80963 | M34: 100 | N34: =K35+M34 -> 132.0642 | Q34: 125 | R34: 257.0642 | V34: =N34-R34 -> -125
E35: =[1]Sheet2!AC40*7% -> 39.55 | F35: 39.55 | G35: 0 | H35: 0 | I35: 0 | J35: 0 | K35: =F34 -> 32.0642 | L35: 5.9325 | M35: 100 | N35: 139.55 | Q35: 125 | R35: 264.55 | V35: =N35-R35 -> -125
B36: 14 | C36: زاوية نعيم | E36: =[1]Sheet2!AC41*7% -> 33.075 | F36: =[1]Sheet2!AC41+E36 -> 505.575 | G36: 0 | H36: 0 | I36: =F36*13% -> 65.72475 | J36: 75 | K36: =F35 -> 39.55 | L36: 87.08625 | M36: 100 | N36: 680.575 | Q36: 125 | R36: 805.575 | U36: تم خصم 68.0575 من أساسى شهر نوفمبر | V36: =N36-R36 -> -125
E37: =[1]Sheet2!AC42*7% -> 30.94 | F37: =[1]Sheet2!AC42+E37 -> 472.94 | G37: 0 | H37: 0 | I37: =F37*13% -> 61.4822 | J37: 75 | K37: =F36+J36 -> 580.575 | L37: 82.191 | M37: 100 | N37: 647.94 | Q37: 125 | R37: 772.94 | V37: =N37-R37 -> -125
B38: 15 | C38: الجرادات | E38: =[1]Sheet2!AC43*7% -> 28.5068 | F38: =SUM(E38:E38) -> 28.5068 | G38: 0 | H38: 0 | I38: =F38*13% -> 3.705884 | J38: 75 | K38: =F37+J37 -> 547.94 | L38: 15.52602 | M38: 100 | N38: 203.5068 | Q38: 125 | R38: 328.5068
E39: =[1]Sheet2!AC44*7% -> 28.5068 | F39: =SUM(E39:E39) -> 28.5068 | G39: 0 | H39: 0 | I39: =F39*13% -> 3.705884 | J39: 75 | K39: =F38+J38 -> 103.5068 | L39: 15.52602 | M39: 100 | N39: 203.5068 | Q39: 125 | R39: 328.5068
E40: =[1]Sheet2!AC45*0% -> 0 | F40: =SUM(E40:E40) -> 0 | G40: 0 | H40: 0 | I40: =F40*13% -> 0 | J40: 75 | K40: =F39+J39 -> 103.5068 | L40: 11.25 | M40: 100 | N40: 175 | Q40: 125 | R40: 300
B41: 16 | C41: كفرعزاز | E41: 0 | F41: 660 | G41: 0 | H41: 0 | I41: 0 | J41: 0 | K41: =F40+J40 -> 75 | L41: 99 | M41: 100 | N41: 760
B42: 17 | C42: روضة خيرى | E42: =[1]Sheet2!AC46*7% -> 0 | F42: =SUM(E42:E42) -> 0 | G42: 0 | H42: 0 | I42: =F42*13% -> 0 | J42: 75 | K42: =F41 -> 660 | L42: 11.25 | M42: 100 | N42: 175 | Q42: 125 | R42: =N42+Q42 -> 300
E43: =[1]Sheet2!AC47*7% -> 33.6371 | F43: 33.6371 | G43: 0 | H43: 0 | I43: =F43*13% -> 4.372823 | J43: 75 | K43: =F42+J42 -> 75 | L43: 16.295565 | M43: 100 | N43: 208.6371 | Q43: 125 | R43: =N43+Q43 -> 333.6371 | U43: تم تطبيق على الأساس 2020 بتاريخ 2022/3/1
E44: =[1]Sheet2!AC48*7% -> 31.8395 | F44: 31.8395 | G44: 0 | H44: 0 | I44: 4.139135 | J44: 75 | K44: 108.6371 | L44: 16.025925 | M44: 100 | N44: 206.8395 | Q44: 125 | R44: =N44+Q44 -> 331.8395
B45: 18 | C45: دسونس | E45: =[1]Sheet2!AC50*7% -> 46.2 | F45: 46.2 | G45: 0 | H45: 0 | I45: 6.006 | J45: 75 | K45: 106.8395 | L45: 18.18 | M45: 100 | N45: 221.2
E46: =[1]Sheet2!AC51*7% -> 37.6817 | F46: 37.6817 | G46: 0 | H46: 0 | I46: 4.898621 | J46: 75 | K46: 121.2 | L46: 16.902255 | M46: 100 | N46: 212.6817 | Q46: 125 | R46: =N46+Q46 -> 337.6817
B47: 19 | C47: ديرأمس | E47: =[1]Sheet2!AC52*7% -> 0 | F47: 0 | G47: 0 | H47: 0 | I47: 0 | J47: 75 | K47: 112.6817 | L47: على المعــــــــــــــــــــاش | U47: تم منحه علاوة تشجعية قبل الطلوع على المعاش
E48: =[1]Sheet2!AC53*7% -> 32.5136 | F48: 32.5136 | G48: 0 | H48: 0 | I48: =F48*13% -> 4.226768 | J48: 75 | K48: 75 | L48: =K49*15% -> 16.12704 | M48: 100 | N48: =K49+M48 -> 207.5136 | Q48: 125 | R48: =N48+Q48 -> 332.5136 | S48: 150
E49: =[1]Sheet2!AC54*7% -> 37.0076 | F49: 37.0076 | I49: =F49*13% -> 4.810988 | J49: 0 | K49: 107.5136 | L49: =K50*15% -> 5.55114 | M49: 0 | N49: 760 | Q49: 125 | R49: =N49+Q49 -> 885 | S49: 150
B50: 20 | C50: قافلة | E50: =[1]Sheet2!AC55*7% -> 29.8172 | F50: 29.8172 | G50: 0 | H50: 0 | I50: 3.876236 | J50: 0.13 | K50: 37.0076 | L50: =K51*15% -> 5.0540154 | M50: 0.15 | N50: =K51+L50 -> 38.7474514 | Q50: =N50*15% -> 5.81211771 | R50: =N50+Q50 -> 44.55956911
E51: =[1]Sheet2!AC56*7% -> 0 | F51: 0 | G51: 0 | H51: 0 | I51: 0 | J51: 0.13 | K51: =F50+I50 -> 33.693436 | L51: =K52*15% -> 0 | M51: 0.15 | N51: =K52+L51 -> 0 | O51: متوفى | Q51: 0 | R51: 0
E52: 0 | F52: 0 | G52: 0 | H52: 0 | I52: 0 | J52: 0.13 | K52: =F51+I51 -> 0 | L52: =K53*15% -> 0 | M52: 0.15 | N52: =K53+L52 -> 0 | Q52: 125 | R52: =N52+Q52 -> 125
B53: 21 | C53: قنديل | E53: =[1]Sheet2!AC58*7% -> 55.433 | F53: 55.433 | G53: 0 | H53: 0 | I53: 7.20629 | J53: 0.13 | K53: =F52+I52 -> 0 | L53: على المعــــــــــــــــــــاش | U53: معاش 2021/11/28
E54: =[1]Sheet2!AC59*7% -> 43.4 | F54: 43.4 | G54: 0 | H54: 0 | I54: =F54*13% -> 5.642 | J54: 75 | K54: =F53+I53 -> 62.63929 | L54: =K55*15% -> 17.76 | M54: 100 | N54: =K55+M54 -> 218.4 | Q54: 125 | R54: =N54+Q54 -> 343.4
E55: =[1]Sheet2!AC60*7% -> 38.0492 | F55: 38.0492 | G55: 0 | H55: 0 | I55: =F55*13% -> 4.946396 | J55: 0 | K55: =F54+J54 -> 118.4 | L55: 5.70738 | M55: 0 | N55: 795 | Q55: 125 | R55: =N55+Q55 -> 920
B56: 22 | C56: كفرحصام | E56: =[1]Sheet2!AC61*7% -> 26.964 | F56: 26.964 | G56: 0 | H56: 0 | I56: 3.50532 | J56: 75 | K56: =F55+J55 -> 38.0492 | L56: 15.2946 | M56: 100 | N56: =K57+M56 -> 201.964 | Q56: 125 | R56: =N56+Q56 -> 326.964
E57: 0 | F57: 0 | G57: 0 | H57: 0 | I57: 0 | J57: 0.13 | K57: =F56+J56 -> 101.964 | L57: 0 | M57: 100 | N57: 100 | Q57: 125 | R57: =N57+Q57 -> 225
B58: 23 | C58: كوم القناطر | E58: 0 | F58: =E58+[1]Sheet2!AC63 -> 428 | G58: 0 | H58: 0 | I58: 0 | J58: 0 | K58: =F57+I57 -> 0 | L58: 64.2 | M58: 100 | N58: 528 | Q58: 125 | R58: =Q58+N58 -> 653
E59: 0 | F59: =E59+[1]Sheet2!AC64 -> 580 | G59: 0 | H59: 0 | I59: 0 | J59: 0 | K59: =F58+I58 -> 428 | L59: 87 | M59: 100 | N59: 680 | Q59: 125 | R59: =Q59+N59 -> 805
E60: 0 | F60: =SUM(E60:E60) -> 0 | G60: 0 | H60: 0 | I60: =F60*13% -> 0 | J60: 75 | K60: =F59+I59 -> 580 | L60: 11.25 | M60: 100 | N60: 175 | Q60: 125 | R60: =Q60+N60 -> 300 | U60: تم أضافة 140بدل 60 في أساسى مرتب التعيين ليكون 760
B61: 24 | C61: الزينى | E61: =[1]Sheet2!AC66*7% -> 30.5662 | F61: 30.5662 | G61: 0 | H61: 0 | I61: =F61*13% -> 3.973606 | J61: 75 | K61: =F60+J60 -> 75 | L61: 15.83493 | M61: 100 | N61: 205.5662 | Q61: 125 | R61: =N61+Q61 -> 330.5662
E62: =[1]Sheet2!AC67*7% -> 35.35 | F62: 35.35 | G62: 0 | H62: 0 | I62: =F62*13% -> 4.5955 | J62: 75 | K62: =F61+J61 -> 105.5662 | L62: 16.5525 | M62: 100 | N62: 210.35 | Q62: 125 | R62: =N62+Q62 -> 335.35
E63: 0 | F63: 0 | G63: 0 | H63: 0 | I63: 0 | J63: 0 | K63: =F62+J62 -> 110.35 | L63: 0 | M63: 100 | N63: 100 | Q63: 125 | R63: =N63+Q63 -> 225
B64: 25 | C64: الصخرة | E64: =[1]Sheet2!AC69*7% -> 35.35 | F64: 35.35 | G64: 0 | H64: 0 | I64: =F64*13% -> 4.5955 | J64: 0.13 | K64: =F63 -> 0 | L64: 5.991825 | M64: 0.15 | N64: =K65+L64 -> 45.937325 | Q64: 125 | R64: =N64+Q64 -> 170.937325
B65: 26 | C65: بطورس | E65: =[1]Sheet2!AC70*7% -> 46.2 | F65: 46.2 | G65: 0 | H65: 0 | I65: =F65*13% -> 6.006 | J65: 75 | K65: =F64+I64 -> 39.9455 | L65: 18.18 | M65: 100 | N65: =K66+M65 -> 221.2 | Q65: 125 | R65: =N65+Q65 -> 346.2
E66: =[1]Sheet2!AC71*7% -> 38.955 | F66: 38.955 | G66: 0 | H66: 0 | I66: =F66*13% -> 5.06415 | J66: 75 | K66: =F65+J65 -> 121.2 | L66: 17.09325 | M66: 100 | N66: =K67+M66 -> 213.955 | Q66: 125 | R66: 338.955
E67: 0 | F67: 0 | G67: 0 | H67: 0 | I67: 0 | J67: 0 | K67: =F66+J66 -> 113.955 | L67: 0 | M67: 100 | N67: =K68+M67 -> 100 | Q67: 125 | R67: 225
K68: =F67+J67 -> 0 | N68: 795 | Q68: 125 | R68: 920
B69: 27 | C69: ب .الشرقية | E69: =[1]Sheet2!AC74*7% -> 46.2 | F69: =SUM(E69:E69) -> 46.2 | G69: 0 | H69: 0 | I69: =F69*13% -> 6.006 | J69: 75 | L69: =K70*15% -> 18.18 | M69: 100 | N69: =K70+M69 -> 221.2 | Q69: 125 | R69: 346.2 | U69: تم عمل علاوة 12% بحد أدنى أبتداء من 1/7/2020
B70: 28 | C70: بلقطر الغربية | E70: =[1]Sheet2!AC75*7% -> 0 | F70: =SUM(E70:E70) -> 0 | G70: 0 | H70: 0 | I70: 0 | J70: 75 | K70: =F69+J69 -> 121.2 | L70: =K71*15% -> 11.25 | M70: 100 | N70: =K71+M70 -> 175 | Q70: 125 | R70: 300
E71: =[1]Sheet2!AC76*7% -> 17.1969 | F71: =SUM(E71:E71) -> 17.1969 | G71: 0 | H71: 0 | I71: 2.235597 | J71: 75 | K71: =F70+J70 -> 75 | L71: =K72*15% -> 13.829535 | M71: 100 | N71: =K72+M71 -> 192.1969 | Q71: 125 | R71: 317.1969
B72: 29 | C72: محل كيل | E72: =[1]Sheet2!AC77*7% -> 20.0802 | F72: =SUM(E72:E72) -> 20.0802 | G72: 0 | H72: 0 | I72: 2.610426 | J72: 75 | K72: =F71+J71 -> 92.1969 | L72: =K73*15% -> 14.26203 | M72: 100 | N72: =K73+M72 -> 195.0802 | Q72: 125 | R72: 320.0802
E73: =[1]Sheet2!AC78*7% -> 17.5336 | F73: =SUM(E73:E73) -> 17.5336 | G73: 0 | H73: 0 | I73: 2.279368 | J73: 75 | K73: =F72+J72 -> 95.0802 | L73: =K74*15% -> 13.88004 | M73: 100 | N73: =K74+M73 -> 192.5336 | Q73: 125 | R73: 317.5336
K74: =F73+J73 -> 92.5336 | N74: 760 | Q74: 125 | R74: 885
B75: 30 | C75: راضى | E75: =[1]Sheet2!AC80*7% -> 29.26 | F75: =SUM(E75:E75) -> 29.26 | I75: 3.8038 | J75: 75 | L75: =K76*15% -> 15.639 | M75: 100 | N75: =K76+M75 -> 204.26
B76: 31 | C76: جواد حسنى | E76: =[1]Sheet2!AC81*7% -> 46.6039 | F76: 46.6039 | G76: 0 | H76: 0 | I76: 0 | J76: 0 | K76: =F75+J75 -> 104.26 | L76: =K77*15% -> 6.990585 | M76: 100 | N76: =K77+M76 -> 146.6039 | Q76: 125 | R76: =N76+Q76 -> 271.6039
A77: محمود عوض | B77: 32 | C77: المشتركة | E77: =[1]Sheet2!AC82*7% -> 50.7143 | F77: 50.7143 | G77: 0 | H77: 0 | I77: =F77*13% -> 6.592859 | J77: 0.13 | K77: =F76+J76 -> 46.6039 | L77: =K78*$K$4 -> 0 | N77: =K78+L77 -> 0 | P77: 0 | R77: =N77*15% -> 0 | V77: محمود عوض
A78: مصطفى | E78: =[1]Sheet2!AC83*7% -> 45.3215 | F78: 45.3215 | G78: 0 | H78: 0 | I78: =F78*13% -> 5.891795 | J78: 0.13 | K78: 0 | L78: =K79*15% -> 7.68199425 | M78: 0.15 | N78: =K79+L78 -> 58.89528925 | P78: 0 | Q78: =N78*15% -> 8.834293388 | R78: =N78+Q78 -> 67.72958264 | V78: مصطفى
A79: أيمن محمد | E79: =[1]Sheet2!AC84*7% -> 45.3215 | F79: 45.3215 | G79: 0 | H79: 0 | I79: 5.891795 | J79: 0.13 | K79: =F78+I78 -> 51.213295 | L79: 7.68199425 | M79: 0.15 | N79: =K80+L79 -> 58.89528925 | P79: 0 | Q79: =N79*15% -> 8.834293388 | R79: =N79+Q79 -> 67.72958264 | V79: ايمن
A80: تامر محفوظ | E80: =[1]Sheet2!AC85*7% -> 37.6439 | F80: 37.6439 | G80: 0 | H80: 0 | I80: 4.893707 | J80: 0.13 | K80: =F79+I79 -> 51.213295 | L80: 6.38064105 | M80: 0.15 | N80: =K81+L80 -> 48.91824805 | P80: 0 | Q80: =N80*15% -> 7.337737208 | R80: =N80+Q80 -> 56.25598526 | V80: تامر
A81: حاتم رأفت | E81: =[1]Sheet2!AC86*7% -> 43.4 | F81: 43.4 | G81: 0 | H81: 0 | I81: 5.642 | J81: 75 | K81: =F80+I80 -> 42.537607 | L81: 17.76 | M81: 100 | N81: =K82+M81 -> 218.4 | P81: 0 | Q81: 125 | R81: =N81+Q81 -> 343.4 | V81: حاتم
A82: أحمد قطب | E82: =[1]Sheet2!AC87*7% -> 43.4 | F82: 43.4 | G82: 0 | H82: 0 | I82: 5.642 | J82: 0.13 | K82: =F81+J81 -> 118.4 | L82: 7.3563 | M82: 0.15 | N82: =K83+L82 -> 56.3983 | P82: 0 | Q82: =N82*15% -> 8.459745 | R82: =N82+Q82 -> 64.858045 | V82: احمد ابوشليل
A83: إيهاب جويدة | E83: =[1]Sheet2!AC88*7% -> 43.4 | F83: 43.4 | G83: 0 | H83: 0 | I83: 5.642 | J83: 0.13 | K83: =F82+I82 -> 49.042 | L83: 7.3563 | M83: 0.15 | N83: 56.3983 | P83: =N83+225 -> 281.3983 | Q83: =P83*15% -> 42.209745 | R83: =P83+Q83 -> 323.608045 | U83: تم تعديل الاساسى كرئيس حسابات من 175 إلى 350 واضافة 50 لشهادة الدبلومة في 2022/11/1 | V83: إيهاب
A84: أحمد سعد | E84: =[1]Sheet2!AC89*7% -> 40.95 | F84: 40.95 | G84: 0 | H84: 0 | I84: 5.3235 | J84: 0.13 | K84: 49.042 | L84: 6.941025 | M84: 0.15 | N84: 53.214525 | P84: 0 | Q84: =N84*15% -> 7.98217875 | R84: =N84+Q84 -> 61.19670375 | V84: احمد سعد
A85: محمود السيد | E85: =[1]Sheet2!AC90*7% -> 43.4 | F85: 43.4 | G85: 0 | H85: 0 | I85: =F85*13% -> 5.642 | J85: 0.13 | K85: 46.2735 | L85: 7.3563 | M85: 0.15 | N85: 56.3983 | P85: 0 | Q85: 125 | R85: =N85+Q85 -> 181.3983 | V85: محمد ابويوسف
A86: أحمد عطية | E86: 0 | F86: 0 | G86: 0 | H86: 0 | I86: 0 | J86: 0.13 | K86: 49.042 | L86: 0 | M86: 0.15 | N86: 0 | P86: 0 | Q86: 0 | R86: =N86 -> 0 | V86: احمد عطيه
A87: محمود نمر | E87: 0 | F87: 0 | G87: 0 | H87: 0 | I87: 0 | J87: 0.13 | K87: 0 | L87: 0 | M87: 0.15 | N87: 0 | P87: 0 | Q87: 125 | R87: =N87+Q87 -> 125 | V87: النمر
B88: 33 | C88: صندوق التمويل | E88: =[1]Sheet2!AC93*7% -> 43.4 | F88: 43.4 | G88: 0 | H88: 0 | I88: =F88*13% -> 5.642 | J88: 0 | K88: 0 | L88: 6.51 | M88: 100 | N88: =K89+M88 -> 143.4 | Q88: 125 | R88: =N88+Q88 -> 268.4
B89: 34 | C89: التمويل | E89: =[1]Sheet2!AC94*7% -> 43.4 | F89: 43.4 | G89: 0 | H89: 0 | I89: =F89*13% -> 5.642 | J89: 0.13 | K89: =F88+J88 -> 43.4 | L89: 7.3563 | M89: 0.15 | N89: =K90+L89 -> 56.3983 | Q89: =N89*15% -> 8.459745 | R89: =N89+Q89 -> 64.858045
E90: 0 | F90: 0 | G90: 0 | H90: 0 | I90: =F90*13% -> 0 | J90: 0.13 | K90: =F89+I89 -> 49.042 | L90: 0 | M90: 0.15 | N90: =K91+L90 -> 0 | Q90: 125 | R90: =N90+Q90 -> 125
K91: =F90+I90 -> 0
I108: 714.16 | J108: 140 | K108: 65 | L108: 65 | M108: 22.54 | N108: =SUM(I108:M108) -> 1006.7

Sheet Sheet1
K10: شهر 5 | M10: شهر 6 | O10: شهر 7 | Q10: شهر 8 | S10: شهر 9 | U10: شهر 10 | W10: شهر 11 | Y10: شهر 12 | AA10: شهر 1 | AC10: شهر 2 | AE10: شهر 3 | AG10: شهر4 | AI10: شهر 5 | AK10: شهر 6 | AM10: شهر 7 | AO10: شهر 8 | AR10: شهر 9 | AT10: شهر 11 | AV10: شهر 12 | AX10: شهر1
K11: القروى | L11: 19 | M11: بريدان | O11: كوم القناطر | Q11: قافلة | S11: ب.الشرقية | U11: القروى | W11: بطورس | Y11: بطورس | AA11: ابوكبارية | AC11: راضى | AE11: القروى | AG11: روضة خيرى | AI11: زاوية نعيم | AK11: بركة غطاس | AM11: كوم القناطر | AO11: برسيق | AR11: راضى | AT11: سحالى | AV11: قافلة | AX11: راضى | AZ11: ابويوسف | BB11: محلة كيل
K12: ط.برسيق | L12: 22 | M12: زاوية نعيم | O12: دسوسن | Q12: أبويوسف | S12: جواد حسنى | U12: ط.برسيق | W12: قافلة | Y12: بركة غطاس | AA12: برسيق | AB12: بدون | AC12: النخلة البحرية | AE12: ابوهواش | AG12: صندوق التمويل | AI12: بلقطر الشرقية | AK12: ابوكبارية | AM12: النخلة البحرية | AR12: ابوهواش | AT12: بركة غطاس | AV12: قنديل | AX12: الغابة | AZ12: ط.برسيق | BB12: دسونس | BG12: تم عمل محضر لزاوية نعيم رفع الحد الأدنى ل1400 في تاريخ 27-6-2022 ولم يطبق على شهر 6
K13: راضى | L13: 23 | M13: ابويوسف | O13: العشرة | Q13: بريدان | S13: زاوية نعيم | U13: ابويوسف | W13: بركة غطاس | Y13: دسونس | AA13: سحالى | AC13: بركة غطاس | AE13: كوم القناطر | AG13: ابوكبارية | AI13: سحالى | AK13: النخلة البحرية | AM13: المشتركة | AO13: ابوكبارية | AR13: بطورس | AT13: القروى | AV13: ب الشرقية | AX13: ب الغربية | AZ13: جواد حسنى | BB13: الصخرة
K14: ابوكبارية | M14: ط.برسيق | O14: رضى | Q14: بطورس | S14: كوم القناطر | U14: ب.الشرقية | W14: ابوكباية | Y14: جوادحسنى | AA14: بريدان | AC14: بلقطر الشرقية | AE14: بلقطرالغربية | AG14: بلقطر الشرقية | AI14: محلة كيل | AK14: سحالى | AM14: القروى | AO14: محلة كيل | AR14: روضة خيرى | AT14: الصخرة | AV14: كفرعزاز | AX14: قافلة | AZ14: الصخرة | BB14: ابويوسف
K15: ابويوسف | M15: قنديل | O15: النخلة البحرية | Q15: بركة غطاس | S15: بركة غطاس | U15: ب.الغربية | W15: سحالى | Y15: الزينى | AA15: ابويوسف | AC15: دسونس | AE15: راضى | AG15: بركة غطاس | AI15: طلمبات برسيق | AK15: قنديل | AM15: ب الشرقية | AO15: ابوهواش | AP15: مطبوعة في الدرج | AR15: ط.برسيق | AT15: كوم القناطر | AV15: الصخرة | AX15: بسنتواى | AZ15: النخلة البحرية | BB15: روضة خيرى
K16: محلة كيل | M16: بركة غطاس | O16: ابوكبارية | Q16: سحالى | S16: قنديل | U16: البركة | W16: التمويل | Y16: القروى | AA16: جواد حسنى | AC16: زاوية نعيم | AE16: بركة غطاس | AG16: بطورس | AI16: راضى | AK16: ابوهواش | AM16: ابوكبارية | AO16: سحالى | AR16: كوم القناطر | AT16: زاوية نعيم | AV16: محلة كيل | AX16: سحالى | AZ16: راضى | BB16: الجرن | BD16: 3429.54
K17: بلقطر الشرقية | M17: بلقطرالشرقية | O17: الغابة | Q17: ط.برسيق | S17: الجرادات | U17: دسونس | W17: سحالى | Y17: زاوية نعيم | AA17: الصحرة | AC17: العشرة | AE17: أبويوسف | AG17: طلمبات برسيق | AI17: ابوهواش | AK17: كوم القناطر | AM17: محلة كيل | AO17: ط برسيق | AR17: ابوكبارية | AT17: ط برسيق | AV17: راضى | AX17: أبوهواش | AZ17: بركة غطاس | BB17: بريدان | BD17: 3308.73 | BI17: 400 | BJ17: =(BI17-50)*6.5/1000 -> 2.275
K18: الصخرة | M18: كوم القناطر | O18: روضة خيرى | Q18: الجرادات | S18: ابوكبارية | U18: الجرادات | W18: راضى | Y18: أبويوسف | AA18: بسنتواى | AB18: بدون | AC18: سحالى | AE18: جواد حسنى | AG18: بريدان | AI18: قافلة | AK18: الصخرة | AM18: قنديل | AO18: راضى | AR18: ابويوسف | AT18: روضة خيرى | AV18: زاوية نعيم | AX18: قنديل | AZ18: سحالى | BB18: برسيق | BD18: 3308.73 | BI18: 210 | BJ18: =(BI18-50)*6/1000 -> 0.96
K19: دسونس | M19: بطورس | O19: ط.برسيق | Q19: النخله البحرية | S19: الصخرة | U19: راضى | W19: ابويوسف | Y19: قافلة | AA19: روضة خيرى | AC19: محلة كيل | AE19: بلقطر الشرقية | AG19: محلة كيل | AI19: كفرعزاز | AK19: العشرة | AM19: راضى | AO19: بسنتواى | AR19: المشتركة | AT19: دسونس | AV19: روضة خيرة | AX19: ابوكيارية | AZ19: زاوية نعبم | BB19: العشرة | BD19: 2560.54
K20: زاوية نعيم | M20: كفرحصام | O20: كوم القناطر | Q20: ب.الغربية | S20: أبويوسف | U20: بريدان | W20: قنديل | Y20: بريدان | AA20: ط.برسيق | AC20: بلقطر الغربية | AE20: الجرادات | AG20: المشتركة | AI20: العشرة | AK20: طلمبات برسيق | AM20: قافلة | AO20: بركة غطاس | AR20: التمويل | AT20: العشرة | AV20: الزينى | AX20: بركة غطاس | AZ20: برسيق | BB20: ط.برسيق | BD20: 1700 | BI20: =400-2 -> 398
K21: العشرة | M21: النخلة البحرية | O21: سحالى | Q21: جواد حسنى | S21: ب.الغربية | U21: قافلة | W21: دسونس | Y21: محلة كيل | AA21: قافلة | AC21: بطورس | AE21: الصخرة | AG21: التمويل | AI21: قنديل | AK21: محلة كيل | AM21: العشرة | AO21: بطورس | AR21: ص اتمويل | AT21: ب الغربية | AX21: بلقطر الشرقية | AZ21: دسونس | BD21: 2826.24
K22: بسنتواى | M22: الجرادات | O22: بركة غطاس | Q22: ابوكبارية | S22: القروى | U22: ابوهواش | W22: المشتركة | Y22: ب.الشرقية | AA22: القروى | AB22: بدون | AC22: جواد حسنى | AE22: بطورس | AG22: سحالى | AK22: قافلة | AM22: بطورس | AO22: النخلة البحرية | AR22: ديرامس | AT22: راضى | AX22: ط.بريق | AZ22: قنديل | BD22: 3161.27
K23: بركة غطاس | M23: برسيق | O23: برسيق | Q23: قنديل | S23: النخلة البحرية | U23: زاوية نعيم | W23: النخلة البحرية | Y23: ب.الغربية | AA23: ب.الغربية | AC23: كوم القناطر | AE23: ديرامس | AG23: قنديل | AK23: زاوية نعيم | AM23: ابوهواش | AO23: الزينى | AR23: بسنتواى | AT23: بطورس | AX23: أبويوسف | AZ23: قافلة | BD23: 3836.26
K24: جواد حسنى | M24: قافلة | O24: جواد حسنى | S24: قافلة | U24: بطورس | W24: صندوق التمويل | Y24: بسنتواى | AA24: ديرامس | AC24: ديرامس | AE24: قافلة | AG24: كفرحصام | AK24: الجرادات | AM24: دسونس | AO24: الجرادات | AR24: قافلة | AT24: الجرادات | AX24: روضة خيرة | AZ24: بطورس | BD24: 3015.27
K25: سحالى | M25: دسونس | O25: بطورس | S25: ابوهواش | U25: العشرة | W25: ال | Y25: الغابة | AA25: المشتركة | AB25: بدون | AC25: ابويوسف | AE25: زاوية نعيم | AG25: برسيق | AK25: روضة الخيرى | AM25: سحالى | AO25: قافلة | AR25: دسونس | AT25: كفرعزاز | AX25: برسيق | AZ25: ديرامس | BD25: 2186.38
K26: قافله | M26: الزينى | O26: محلة كيل | S26: راضى | U26: قنديل | W26: ط.برسيق | Y26: النخلة البحرية | AA26: التمويل | AB26: بدون | AC26: روضة خيرى | AE26: الغابة | AG26: النخلة البحرية | AK26: ابويوسف | AM26: البركة غطاس | AO26: بريدان | AR26: جواد حسنى | AT26: قافلة | AX26: القروى | AZ26: الغابة | BD26: 2992.07
K27: بريدان | M27: ابوكبارية | O27: الزينى | S27: ديرأمس | U27: كفرعزاز | W27: العشرة | Y27: أبوكبارية | AA27: ص.التمويل | AB27: بدون | AC27: الصخرة | AE27: العشرة | AG27: بسنتواي | AK27: دسونس | AM27: الجرادات | AO27: ديرامس | AR27: الصخرة | AT27: الوينى | AX27: دسونس | AZ27: بريدان | BD27: 3161.26
K28: ديرامس | M28: محلة كيل | O28: الصخرة | S28: الغابة | U28: النخلة البحرية | W28: ديرامس | Y28: المشتركة | AA28: الغابة | AB28: بدون | AC28: ابوهواش | AE28: ابوكبارية | AG28: زاوية نعيم | AK28: جواد حسنى | AM28: بسنتواى | AO28: كفرحصام | AR28: محلة كيل | AT28: راضى | AX28: جواد حسنى | AZ28: العشرة | BD28: =SUM(BD16:BD27) -> 35486.29
K29: بلقطر الغربية | M29: ديرامس | O29: ابويوسف | S29: روضة خيرى | U29: الزينى | W29: محلة كيل | Y29: التمويل | AA29: محلة كيل | AC29: قافلة | AE29: محلة كيل | AG29: قافلة | AK29: القروى | AM29: ط برسيق | AO29: الصخرة | AR29: القروى | AT29: المشتركة | AX29: الجرادات | AZ29: ب.الشرقية
K30: الجرادات | M30: الصخرة | O30: بريدان | S30: المشتركة | U30: كوم القناطر | W30: القروى | Y30: صندوق تمويل | AA30: الزينى | AC30: ابوكبارية | AE30: قنديل | AG30: الصخرة | AK30: الزينى | AM30: جواد حسنى | AO30: ابويوسف | AR30: بلقطر الشرقية | AT30: التمويل | AX30: ديرامس | AZ30: كوم القناطر
K31: كوم القناطر | M31: مشتركة | O31: كفرحصام | S31: التمويل | U31: الصخرة | W31: بلقطر الشرقية | Y31: ط.برسيق | AA31: ب.الشرقية | AB31: بدون | AC31: المشتركة | AE31: برسيق | AG31: كوم القناطر | AK31: ديرامس | AM31: روضة خيرى | AO31: كفرعزاز | AR31: الغابة | AT31: ص التمويل | AX31: بطورس | AZ31: الجرادات
M32: تمويل | O32: بلقطر الغربية | S32: صندوق التمويل | U32: محلة كيل | W32: الجرادات | Y32: الجرادات | AA32: كفرعزاز | AB32: بدون | AC32: بسنتواى | AE32: سحالى | AG32: القروى | AM32: التمويل | AO32: بلقطر الغربية | AR32: النخلة البحرية | AT32: العغابة | AX32: النخلة البحرية | AZ32: الجرن
K33: ابوهواش | M33: صندوق تمويل | O33: الجرادات | S33: الزينى | U33: روضة خيرى | W33: بريدان | Y33: سحالى | AA33: زاوية نعيم | AC33: كفر عزاز | AE33: بسنتواى | AG33: دسونس | AM33: صندوق التمويل | AO33: قنديل | AT33: برسيق | AX33: الصخرة | AZ33: ب الغربية
K34: الزينى | M34: جواد حسنى | S34: كفرحصام | U34: المشتركة | W34: الزينى | Y34: الصخرة | AA34: العشرة | AC34: ابوكبارية | AE34: كفرعزاز | AG34: بلقطر الغربية | AM34: كفرحصام | AO34: روضة خيرى | AT34: ابوهواش | AX34: كوم القناطر | AZ34: كفرعزاز
K35: كفرحصام | M35: روضة خيرى | S35: كفرعزاز | U35: التمويل | W35: الغابة | Y35: قنديل | AA35: راضى | AC35: صندوق التمويل | AE35: بريدان | AG35: راضى | AM35: الزينى | AO35: الغابة | AT35: قنديل
K36: روضة خيرى | M36: راضى | S36: ط.برسيق | U36: صدوق التمويل | W36: جواد حسنى | Y36: راضى | AA36: النخلة البحرية | AB36: بدون | AC36: التمويل | AE36: روضة خيرى | AG36: الغابة | AM36: الغابة | AO36: جواد حسنى | AT36: جوادحسنى
K37: بلقطر الغربية | M37: سحالى | U37: ديرامس | W37: كفرحصام | Y37: ديرامس | AA37: دسونس | AC37: الزينى | AE37: دسونس | AG37: ابوهواش | AM37: بريدان | AO37: بلقطر الشرقية
K38: برسيق | M38: الغابة | U38: كفر حصام | W38: بلقطر الغربية | Y38: كوم القناطر | AA38: ابوهواش | AC38: بريدان | AE38: الزينى | AG38: ابويوسف | AM38: ديرامس | AO38: العشرة
U39: ابوكبارية | W39: الصخرة | Y39: كفرعزاز | AC39: الجرادات | AE39: طلمبات برسيق | AG39: كفرعزاز | AM39: ب.الغريبة | AO39: القروى
U40: سحالى | W40: روضة خيرى | Y40: كفرحصام | AC40: برسيق | AE40: النخلة البحرية | AG40: الزينى | AM40: برسيق
W41: برسيق | Y41: روضة خيرى | AC41: كفرحصام | AE41: كفرحصام
W42: كفرعزاز | Y42: ابوهواش | AC42: ط.برسيق
Y43: برسيق | AC43: القروى

Sheet حافز اثابة
J3: حــافــز اثــابـة شــــــــهر | K3: يوليو | M3: 2020
A4: الجمعية التعاونية الزراعية
A5: بناحية | B5: المشتركة
A6: م | B6: الاســــــــــــــم | D6: الاســـــــــــــــــــــــــــــــــــــــــــــــــــــــــــــــــتــحـــقـــاقــــــات | N6: الاســـــــــــــــــــــــــــــتـــقـــطـــــاعــــــــــات | S6: جملة الخصومات | T6: الصافى المستحق | U6: التوقيع
C7: اسم | D7: العلاوة الخاصة | E7: العلاوة الاجتماعية | F7: حصة الجمعية 24% | G7: العلاوة المضمومة | H7: المرتب الاساسى | I7: جملة المرتب | J7: حصة الجمعية 26% | K7: علاوة اجتماعية | L7: المنحة | M7: الجملة | N7: 0.4 | O7: 0.35 | Q7: قرض | R7: دمغة | S7: جملة الخصومات | T7: الصافى المستحق
C8: الجمعية | D8: ق . ج | E8: ق . ج | F8: ق . ج | G8: ق . ج | H8: ق . ج | I8: ق . ج | J8: ق . ج | K8: ق . ج | L8: ق . ج | M8: ق . ج | N8: ق . ج | O8: ق . ج | P8: ق . ج | Q8: ق . ج | R8: ق . ج | S8: ق . ج | T8: ق . ج
B9: وجيه سعيد التونى | C9: بسنتواى | E9: 384.7 | F9: =ROUNDDOWN(E9*24%,2) -> 92.32 | M9: =SUM(I9:L9)+F9+D9+E9 -> 477.02 | O9: =ROUNDDOWN(E9*35%,2) -> 134.64 | R9: 2.77 | S9: =SUM(N9:R9) -> 137.41 | T9: =M9-S9 -> 339.61
B10: محمد ابراهيم على | C10: ابوهواش | E10: 399.6 | F10: 95.9 | M10: =SUM(I10:L10)+F10+D10+E10 -> 495.5 | O10: =ROUNDDOWN(E10*35%,2) -> 139.86 | R10: 1.85 | S10: =SUM(N10:R10) -> 141.71 | T10: =M10-S10 -> 353.79
B11: على جلا ل رزق | C11: ابوهواش | E11: 352 | F11: 84.48 | M11: 436.48 | O11: 123.2 | R11: 1.6 | S11: 124.8 | T11: 311.68
B12: عبداللطيف عبدالحميد الصباغ | C12: العشرة | E12: 357.7 | F12: 85.84 | M12: =SUM(I12:L12)+F12+D12+E12 -> 443.54 | O12: =ROUNDDOWN(E12*35%,2) -> 125.19 | R12: 1.5 | S12: =SUM(N12:R12) -> 126.69 | T12: =M12-S12 -> 316.85
B13: على عبدالحميد الصباغ | C13: العشرة | E13: 253.5 | F13: 60.84 | M13: =SUM(I13:L13)+F13+D13+E13 -> 314.34 | O13: =ROUNDDOWN(E13*35%,2) -> 88.72 | R13: 1 | S13: =SUM(N13:R13) -> 89.72 | T13: =M13-S13 -> 224.62
B14: مبروك عبدالاه مبروك | C14: العشرة | E14: 272 | F14: 65.28 | M14: 337.28 | O14: 95.2 | R14: 1.1 | S14: 96.3 | T14: 240.98
B15: رئيفة شاكر زويل | C15: بسنتواى | E15: 384.7 | F15: 92.32 | M15: 477.02 | O15: 134.64 | R15: 2.77 | S15: 137.41 | T15: 339.61
B16: علاء عبدالقادرأحمد | C16: برسيق | E16: 352 | F16: 84.48 | M16: 436.48 | O16: 123.2 | R16: 1.6 | S16: 124.8 | T16: 311.68
B17: محمد على القصاص | C17: النخلة البحرية | E17: 628.5 | F17: 150.84 | M17: 779.34 | O17: 219.97 | R17: 3.3 | S17: 223.27 | T17: 556.07
B18: على حسين عبدالهادى | C18: النخلة البحرية | E18: 340 | F18: 81.6 | M18: 421.6 | O18: 119 | R18: 1.5 | S18: 120.5 | T18: 301.1
B19: عامرعبدالسلا م عامر | C19: بريدان | E19: 433.65 | F19: 104.07 | M19: 537.72 | O19: 151.77 | R19: 2 | S19: 153.77 | T19: 383.95
B20: محمد على عيسى | C20: ابوكبارية | E20: 380.4 | F20: 91.29 | M20: 471.69 | O20: 133.14 | R20: 1.4 | S20: 134.54 | T20: 337.15
B21: ماجد عبدالسلام عامر | C21: بريدان | E21: 95 | F21: 22.8 | M21: 117.8 | O21: 33.25 | R21: 0.25 | S21: 33.5 | T21: 84.3
B22: وليدعبدالكريم ضيف الله | C22: بريدان | E22: 384.55 | F22: 92.29 | M22: 476.84 | O22: 134.59 | R22: 1.75 | S22: 136.34 | T22: 340.5
B23: سعد حسن ابراهيم | C23: ط.برسيق | E23: 658 | F23: 157.92 | M23: 815.92 | O23: 230.3 | R23: 3.1 | S23: 233.4 | T23: 582.52
B24: ابراهيم عبدالحميد زكى | C24: ط.برسيق | E24: 569 | F24: 136.56 | M24: 705.56 | O24: 199.15 | R24: 2.8 | S24: 201.95 | T24: 503.61
B25: عاد ل محمد محمود | C25: ط.برسيق | E25: 340 | F25: 81.6 | M25: 421.6 | O25: 119 | R25: 1.5 | S25: 120.5 | T25: 301.1
B26: ابراهيم جمعة الحميرى | C26: ط.برسيق | E26: 380 | F26: 91.2 | M26: 471.2 | O26: 133 | R26: 1.6 | S26: 134.6 | T26: 336.6
B27: مؤمن محمد عبدالعال | C27: بركة غطاس | E27: 494 | F27: 118.56 | M27: 612.56 | O27: 172.9 | R27: 2.35 | S27: 175.25 | T27: 437.31
B28: صباح على عيد شلبى | C28: جواد حسنى | E28: 380 | F28: 91.2 | M28: 471.2 | O28: 133 | R28: 1.6 | S28: 134.6 | T28: 336.6
B29: سامية عبدالمجيد متولى | C29: القروى | E29: 448 | F29: 107.52 | M29: 555.52 | O29: 156.8 | Q29: 1.9 | S29: 158.7 | T29: 396.82
B30: نبيل فتحى عبدالقادر | C30: سحالى | E30: 456.6 | F30: 109.58 | M30: =SUM(I30:L30)+F30+D30+E30 -> 566.18 | O30: =ROUNDDOWN(E30*35%,2) -> 159.81 | R30: 2.15 | S30: =SUM(N30:R30) -> 161.96 | T30: =M30-S30 -> 404.22
B31: أمانى جمعة أبوعوف | C31: سحالى | E31: 380 | F31: 91.2 | M31: 471.2 | O31: 133 | R31: 1.9 | S31: 134.9 | T31: 336.3
B32: أيمن فوزى محمد سلطان | C32: الجرادات | E32: 179.3 | F32: 43.03 | M32: =SUM(I32:L32)+F32+D32+E32 -> 222.33 | O32: =ROUNDDOWN(E32*35%,2) -> 62.75 | R32: 0.6 | S32: =SUM(N32:R32) -> 63.35 | T32: =M32-S32 -> 158.98
B33: سلطان ناجى محمد سلطان | C33: الجرادات | E33: 181.5 | F33: 43.56 | M33: =SUM(I33:L33)+F33+D33+E33 -> 225.06 | O33: =ROUNDDOWN(E33*35%,2) -> 63.52 | R33: 0.6 | S33: =SUM(N33:R33) -> 64.12 | T33: =M33-S33 -> 160.94
B34: مد حت السيد عثمان | C34: الرزقة | E34: 370.95 | F34: 89.02 | M34: 459.97 | O34: 129.83 | R34: 1.7 | S34: 131.53 | T34: 328.44
B35: عاطف عثمان عبدالحليم | C35: ديرامس | E35: 435.6 | F35: 104.54 | M35: 540.14 | O35: 152.46 | R35: 2 | S35: 154.46 | T35: 385.68
B36: عطية عبدالعزيز عبدالله | C36: كفر حصام | E36: 384.65 | F36: 92.31 | M36: 476.96 | O36: 134.62 | R36: 1.75 | S36: 136.37 | T36: 340.59
B37: أحمد محمد عثمان | C37: كوم القناطر | E37: 542 | F37: 130.08 | M37: =SUM(I37:L37)+F37+D37+E37 -> 672.08 | O37: =ROUNDDOWN(E37*35%,2) -> 189.7 | R37: 2.7 | S37: =SUM(N37:R37) -> 192.4 | T37: =M37-S37 -> 479.68
B38: عيد عبدالعاطى عبدالكريم | C38: كوم القناطر | E38: 358 | F38: 85.92 | M38: 443.92 | O38: 125.3 | R38: 1.6 | S38: 126.9 | T38: 317.02
B39: على محمد رجب | C39: قافلة | E39: 789.85 | F39: 189.56 | M39: =SUM(I39:L39)+F39+D39+E39 -> 979.41 | O39: =ROUNDDOWN(E39*35%,2) -> 276.44 | R39: 3.9 | S39: =SUM(N39:R39) -> 280.34 | T39: =M39-S39 -> 699.07
B40: صلاح الدين نجيب عبداللطيف | C40: قافلة | E40: 751.45 | F40: 180.34 | M40: 931.79 | O40: 263 | R40: 3.7 | S40: 266.7 | T40: 665.09
B41: محمد محمود حامد الحداد | C41: محلة كيل | E41: 407.4 | F41: 97.77 | M41: =SUM(I41:L41)+F41+D41+E41 -> 505.17 | O41: =ROUNDDOWN(E41*35%,2) -> 142.59 | R41: 1.9 | S41: =SUM(N41:R41) -> 144.49 | T41: =M41-S41 -> 360.68
B42: رمضان نصر حميدة | C42: محلة كيل | E42: 340 | F42: 81.6 | M42: 421.6 | O42: 119 | R42: 1.5 | S42: 120.5 | T42: 301.1
B43: أيمن سعيد عبداللطيف | C43: راضى | E43: 170 | F43: 40.8 | M43: 210.8 | O43: 59.5 | R43: 0.3 | S43: 59.8 | T43: 151
B44: مصطفى رزق ابراهيم | C44: بلقطر الغربية | E44: 402 | F44: 96.48 | M44: 498.48 | O44: 140.7 | R44: 1.8 | S44: 142.5 | T44: 355.98
B45: عبدالمنعم عبدالهادى ابوسعيفة | C45: بلقطر الغربية | E45: 352 | F45: =ROUNDDOWN(E45*24%,2) -> 84.48 | M45: =SUM(I45:L45)+F45+D45+E45 -> 436.48 | O45: =ROUNDDOWN(E45*35%,2) -> 123.2 | R45: 1.6 | S45: =SUM(N45:R45) -> 124.8 | T45: =M45-S45 -> 311.68
B46: أحمد سعد محى الدين | C46: روضة خيرى | E46: 561.5 | F46: 134.76 | M46: =SUM(I46:L46)+F46+D46+E46 -> 696.26 | O46: =ROUNDDOWN(E46*35%,2) -> 196.52 | R46: 2.7 | S46: =SUM(N46:R46) -> 199.22 | T46: =M46-S46 -> 497.04
B47: خالد رمضان سعدالله | C47: روضة خيرى | E47: 398.7 | F47: 95.68 | M47: =SUM(I47:L47)+F47+D47+E47 -> 494.38 | O47: =ROUNDDOWN(E47*35%,2) -> 139.54 | R47: 1.8 | S47: =SUM(N47:R47) -> 141.34 | T47: =M47-S47 -> 353.04
B48: كرم مصطفى عبدالقادر | C48: روضة خيرى | E48: 255 | F48: 61.2 | M48: 316.2 | O48: 89.25 | R48: 1 | S48: 90.25 | T48: 225.95
B49: فرج محمد الرفلة | C49: بطورس | E49: 348 | F49: 83.52 | M49: =SUM(I49:L49)+F49+D49+E49 -> 431.52 | O49: =ROUNDDOWN(E49*35%,2) -> 121.8 | R49: 1.55 | S49: =SUM(N49:R49) -> 123.35 | T49: =M49-S49 -> 308.17
B50: سمير منصور عبدالحافظ | C50: بطورس | E50: 406 | F50: 97.44 | M50: 503.44 | O50: 142.1 | R50: 1.85 | S50: 143.95 | T50: 359.49
B51: بدرعبدالنبى محمد | C51: الزينى | E51: 85 | F51: 20.4 | M51: 105.4 | O51: 29.75 | R51: 0.2 | S51: 29.95 | T51: 75.45
B52: هانى الصافى محمد | C52: الغابة | E52: 280 | F52: 67.2 | M52: 347.2 | O52: 98 | R52: 1.2 | S52: 99.2 | T52: 248
B53: محمود نعيم بريك | C53: ابويوسف | E53: 373.3 | F53: 89.59 | M53: =SUM(I53:L53)+F53+D53+E53 -> 462.89 | O53: =ROUNDDOWN(E53*35%,2) -> 130.65 | R53: 1.7 | S53: =SUM(N53:R53) -> 132.35 | T53: =M53-S53 -> 330.54
B54: شريف محمود أحمد | C54: ابويوسف | E54: 377.3 | F54: 90.55 | M54: 467.85 | O54: 132.05 | R54: 1.7 | S54: 133.75 | T54: 334.1
B55: عبدالله متولى محمد | C55: قنديل | E55: 479.85 | F55: 115.16 | M55: 595.01 | O55: 167.94 | R55: 2.2 | S55: 170.14 | T55: 424.87
B56: أحمد فتحى ابراهيم | C56: قنديل | E56: 380 | F56: 91.2 | M56: 471.2 | O56: 133 | R56: 1.7 | S56: 134.7 | T56: 336.5
B57: هشام عبود علا م | C57: الصخرة | E57: 363 | F57: 87.12 | M57: 450.12 | O57: 127.05 | R57: 1.65 | S57: 128.7 | T57: 321.42
B58: محمد السيد الشرنوبى | C58: صندوق التمويل | E58: 1049.7 | F58: =ROUNDDOWN(E58*24%,2) -> 251.92 | M58: =SUM(D58:H58)+J58+K58+L58 -> 1301.62 | O58: =ROUNDDOWN(E58*35%,2) -> 367.39 | R58: 6.2 | S58: =SUM(N58:R58) -> 373.59 | T58: 928.03
B59: محمود أحمد عبدالمنعم | C59: المشتركة | E59: 390 | F59: =ROUNDDOWN(E59*24%,2) -> 93.6 | M59: =SUM(I59:L59)+F59+D59+E59 -> 483.6 | O59: =ROUNDDOWN(E59*35%,2) -> 136.5 | R59: 1.7 | S59: =SUM(N59:R59) -> 138.2 | T59: =M59-S59 -> 345.4
B60: مصطفى على سليمان | C60: المشتركة | E60: 1114.6 | F60: 267.5 | M60: 1382.1 | O60: 390.11 | R60: 3 | S60: 393.11 | T60: 988.99
B61: أيمن محمد حسن | C61: المشتركة | E61: 974.7 | F61: 233.92 | M61: =SUM(I61:L61)+F61+D61+E61 -> 1208.62 | O61: =ROUNDDOWN(E61*35%,2) -> 341.14 | R61: 5.5 | S61: =SUM(N61:R61) -> 346.64 | T61: =M61-S61 -> 861.98
B62: سمير محمد عبدالخالق | C62: المشتركة | E62: 974.7 | F62: 233.92 | M62: =SUM(I62:L62)+F62+D62+E62 -> 1208.62 | O62: =ROUNDDOWN(E62*35%,2) -> 341.14 | R62: 5.5 | S62: =SUM(N62:R62) -> 346.64 | T62: =M62-S62 -> 861.98
B63: تامر محفوظ محمد | C63: المشتركة | E63: 974.7 | F63: 233.92 | M63: =SUM(I63:L63)+F63+D63+E63 -> 1208.62 | O63: =ROUNDDOWN(E63*35%,2) -> 341.14 | R63: 5.5 | S63: =SUM(N63:R63) -> 346.64 | T63: =M63-S63 -> 861.98
B64: مبروك السيد القصاص | C64: دسونس | E64: 418.35 | F64: 100.4 | M64: 518.75 | O64: 146.42 | R64: 1.95 | S64: 148.37 | T64: 370.38
B65: محمد مبروك فتح الله | C65: دسونس | E65: 285 | F65: 68.4 | M65: 353.4 | O65: 99.75 | R65: 1.2 | S65: 100.95 | T65: 252.45
B66: رمضان حسن متولى | C66: زاوية نعيم | E66: 384.75 | F66: 92.34 | M66: 477.09 | O66: 134.66 | R66: 1.75 | S66: 136.41 | T66: 340.68
B67: عبدالله باشا عبدالله | C67: زاوية نعيم | E67: 338 | F67: 81.12 | M67: 419.12 | O67: 118.3 | R67: 1.5 | S67: 119.8 | T67: 299.32
B68: فاضل حصافى طه | C68: النخلة البحرية | E68: 420 | F68: 100.8 | M68: 520.8 | O68: 147 | R68: 0.8 | S68: 147.8 | T68: 373
B69: رمضان بدر عبدالوهاب | C69: بلقطر الشرقية | E69: 420 | F69: 100.8 | M69: 520.8 | O69: 147 | R69: 2 | S69: 149 | T69: 371.8
B70: فاطمة أحمد خليل محمد | C70: ابوهواش | E70: 220 | F70: 52.8 | M70: 272.8 | O70: 77 | R70: 0.8 | S70: 77.8 | T70: 195
B71: عبدالنبى بدر عبدالحميد | C71: ط.برسيق | E71: 220 | F71: 52.8 | M71: 272.8 | O71: 77 | R71: 0.8 | S71: 77.8 | T71: 195
B72: حاتم رأفت إبراهيم على | C72: المشتركة | E72: 390 | F72: 93.6 | M72: 483.6 | O72: 136.5 | R72: 1.7 | S72: 138.2 | T72: 345.4
B73: أحمد قطب أبوشليل | C73: المشتركة | E73: 390 | F73: =ROUNDDOWN(E73*24%,2) -> 93.6 | M73: =SUM(I73:L73)+F73+D73+E73 -> 483.6 | O73: 136.5 | R73: 1.7 | S73: =SUM(N73:R73) -> 138.2 | T73: 345.4
B74: محمد إبراهيم غنيم | C74: القروى | E74: 300 | F74: 72 | M74: 372 | O74: 105 | R74: 1.2 | S74: 106.2 | T74: 265.8
B75: إيهاب أحمد محمود جويدة | C75: المشتركة | E75: 390 | F75: 93.6 | M75: =SUM(I75:L75)+F75+D75+E75 -> 483.6 | O75: =ROUNDDOWN(E75*35%,2) -> 136.5 | R75: 1.7 | S75: =SUM(N75:R75) -> 138.2 | T75: =M75-S75 -> 345.4
B76: محمود السيد محمد جمعة | C76: المشتركة | E76: 390 | F76: 93.6 | M76: =SUM(I76:L76)+F76+D76+E76 -> 483.6 | O76: =ROUNDDOWN(E76*35%,2) -> 136.5 | R76: 1.7 | S76: =SUM(N76:R76) -> 138.2 | T76: =M76-S76 -> 345.4
B77: ياسر محمد كامل سعد | C77: المشتركة | E77: 390 | F77: 93.6 | M77: 483.6 | O77: 136.5 | R77: 1.7 | S77: 138.2 | T77: 345.4
B78: أحمد سعد عطية إبراهيم | C78: التمويل | E78: 390 | F78: 93.6 | M78: =SUM(I78:L78)+F78+D78+E78 -> 483.6 | O78: =ROUNDDOWN(E78*35%,2) -> 136.5 | R78: 1.7 | S78: =SUM(N78:R78) -> 138.2 | T78: =M78-S78 -> 345.4
B79: محمد محمود نصرعتمان | C79: التمويل | E79: 390 | F79: 93.6 | M79: 483.6 | O79: 136.5 | R79: 1.7 | S79: 138.2 | T79: 345.4
F80: 0 | M80: 0 | O80: 0 | S80: 0 | T80: 0
C81: الاجمالى | D81: =SUMIF($C$9:$C$80,$B$5,D9:D80) -> 0 | E81: 6378.7 | F81: 1530.86 | G81: 0 | H81: 0 | I81: 0 | J81: 0 | K81: 0 | L81: 0 | M81: 7909.56 | N81: 0 | O81: 2232.53 | P81: 0 | Q81: 0 | R81: 29.7 | S81: 2262.23 | T81: 5647.33
B83: صرفت المرتبات بمعرفتى | F83: روجعت التوقيعات | J83: المختص | N83: روجع رئيس الحسابات | S83: رئيس مجلس الادارة
U86: -

Sheet العلاوات السنوية قديم
A4: م | B4: الجمعية | C4: أساسى قبل 2021/6/30 | D4: 0.07 | E4: الأساسى بعد 2021/7/1 | F4: علاوة تشجعية | G4: الأساسى بعد 2021/7/1 | H4: 0.13 | I4: 13% بحد أدنى 75 | J4: الأساسى بعد 2021/7/1 | K4: 0.15 | L4: 15% بحد أدنى 100 | M4: الأساسى بعد 2022/4/1 | N4: ملاحظات
A5: 1 | B5: روضة خيرى | C5: 480.53 | D5: =C5*7% -> 33.6371 | E5: =SUM(C5:D5) -> 514.1671 | F5: 0 | G5: 0 | H5: =E5*13% -> 66.841723 | I5: 75 | J5: =E5+I5 -> 589.1671 | K5: =J5*$K$4 -> 88.375065 | L5: 100 | M5: =J5+L5 -> 689.1671
C6: 454.85 | D6: 31.8395 | E6: 486.6895 | F6: 0 | G6: 0 | H6: 63.269635 | I6: 75 | J6: =E6+I6 -> 561.6895 | K6: 84.253425 | L6: 100 | M6: =J6+L6 -> 661.6895 | N6: تم تطبيق على الأساس 2020 بتاريخ 2022/3/1
C7: 421.68 | D7: 29.5176 | E7: 451.1976 | F7: 0 | G7: 0 | H7: 58.655688 | I7: 75 | J7: =E7+I7 -> 526.1976 | K7: 78.92964 | L7: 100 | M7: =J7+L7 -> 626.1976
A8: 2 | B8: طلمبات برسيق | C8: 582.18 | D8: 40.7526 | E8: 622.9326 | F8: 0 | G8: 0 | H8: 80.981238 | I8: 0.13 | J8: =E8+H8 -> 703.913838 | K8: 105.5870757 | L8: 0.15 | M8: =J8+K8 -> 809.5009137
C9: 462.34 | D9: 32.3638 | E9: 494.7038 | F9: 0 | G9: 0 | H9: 64.311494 | I9: 75 | J9: =E9+I9 -> 569.7038 | K9: 85.45557 | L9: 100 | M9: =J9+L9 -> 669.7038
C10: 455.92 | D10: 31.9144 | E10: 487.8344 | F10: 0 | G10: 0 | H10: 63.418472 | I10: 75 | J10: 562.8344 | K10: 84.42516 | L10: 100 | M10: 662.8344
C11: 219.45 | D11: 15.3615 | E11: 234.8115 | F11: 0 | G11: 0 | H11: 30.525495 | I11: 75 | J11: 309.8115 | K11: 46.471725 | L11: 100 | M11: 409.8115
A12: ق | B12: جواد حسنى | C12: 482.67 | D12: 33.7869 | E12: 516.4569 | F12: 0 | G12: 0 | H12: 0 | I12: 0 | J12: 516.4569 | K12: 77.468535 | L12: 100 | M12: 616.4569 | Q12: ديرامس | U12: 565.69 | V12: 0.05 | W12: =U12*V12 -> 28.2845 | X12: =U12+W12 -> 593.9745
A13: 4 | B13: بطورس | C13: 428 | D13: 29.96 | E13: 457.96 | F13: 0 | G13: 0 | H13: =E13*13% -> 59.5348 | I13: 75 | J13: 532.96 | K13: 79.944 | L13: 100 | M13: 632.96
C14: 347.75 | D14: 24.3425 | E14: 372.0925 | F14: 0 | G14: 0 | H14: =E14*13% -> 48.372025 | I14: 75 | J14: 447.0925 | K14: 67.063875 | L14: 100 | M14: 547.0925
C15: 660 | D15: 0 | E15: 660 | F15: 0 | G15: 0 | H15: 0 | I15: 0 | J15: 660 | K15: 99 | L15: 100 | M15: 760
A16: 5 | B16: ديرأمس | C16: 528.68 | D16: =C16*7% -> 37.0076 | E16: 565.6876 | F16: =E16*N16 ->  | G16: =E16+F16 ->  | H16: =E16*13% -> 73.539388 | I16: 75 | J16: =H16+I16 -> 148.539388 | N16: تم منحه علاوة تشجعية قبل الطلوع على المعاش | O16: علاوة تشجعية
C17: 425.96 | D17: 29.8172 | E17: 455.7772 | F17: 0 | G17: 0 | H17: 59.251036 | I17: 75 | J17: =E17+I17 -> 530.7772 | K17: =J17*$K$4 -> 79.61658 | L17: 100 | M17: =J17+L17 -> 630.7772
A18: 6 | B18: القروى | C18: 282 | D18: 19.74 | E18: 301.74 | F18: 0 | G18: 0 | H18: 39.2262 | I18: 75 | J18: =E18+I18 -> 376.74
C19: 144 | D19: 10.08 | E19: 154.08 | F19: 0 | G19: 0 | H19: 20.0304 | I19: 75 | J19: =E19+I19 -> 229.08
A20: 7 | B20: قافلة | C20: 810.09 | D20: 56.7063 | E20: 866.7963 | F20: 0 | G20: 0 | H20: 112.683519 | I20: 0.13 | J20: =E20+H20 -> 979.479819 | K20: =J20*$K$4 -> 146.9219729 | L20: 0.15 | M20: =J20+K20 -> 1126.401792
C21: 791.9 | D21: 55.433 | E21: 847.333 | F21: 0 | G21: 0 | H21: 110.15329 | I21: 0.13 | J21: =E21+H21 -> 957.48629 | K21: 143.6229435 | L21: 0.15 | M21: =J21+K21 -> 1101.109233
C22: 620 | D22: 0 | E22: 620 | F22: 0 | G22: 0 | H22: 80.6 | I22: 0.13 | J22: =E22+H22 -> 700.6 | K22: 105.09 | L22: 0.15 | M22: =J22+K22 -> 805.69 | T22: 2.5 | U22: =T22*30 -> 75
A23: 8 | B23: الزينى | C23: 452.71 | D23: =C23*7% -> 31.6897 | E23: 484.3997 | F23: 0 | G23: 0 | H23: 62.971961 | I23: 75 | J23: =E23+I23 -> 559.3997 | K23: 83.909955 | L23: 100 | M23: =J23+L23 -> 659.3997 | R23: =75/30 -> 2.5
C24: 505 | D24: =C24*7% -> 35.35 | E24: 540.35 | F24: 0 | G24: 0 | H24: 70.2455 | I24: 75 | J24: =E24+I24 -> 615.35 | K24: 92.3025 | L24: 100 | M24: =J24+L24 -> 715.35
C25: 660 | D25: 0 | E25: 660 | H25: 0 | I25: 0 | J25: =E25 -> 660 | K25: 99 | L25: 100 | M25: =J25+L25 -> 760
A26: 9 | B26: قنديل | C26: 543.56 | D26: =C26*7% -> 38.0492 | E26: 581.6092 | F26: 0 | G26: 0 | H26: =E26*13% -> 75.609196 | I26: 75 | J26: =E26+I26 -> 656.6092 | N26: معاش 2021/11/28 | U26: =27*T22 -> 67.5
C27: 385.2 | D27: 26.964 | E27: 412.164 | F27: 0 | G27: 0 | H27: 53.58132 | I27: 75 | J27: 487.164 | K27: =J27*$K$4 -> 73.0746 | L27: 100 | M27: =J27+L27 -> 587.164
A28: 10 | B28: النخلة البحرية | C28: 522.16 | D28: 36.5512 | E28: 558.7112 | F28: 0 | G28: 0 | H28: 72.632456 | I28: 75 | J28: 633.7112 | K28: 95.05668 | L28: 100 | M28: 733.7112
C29: 367.1 | D29: 25.697 | E29: 392.797 | F29: 0 | G29: 0 | H29: 51.06361 | I29: 75 | J29: 467.797 | K29: 70.16955 | L29: 100 | M29: 567.797
C30: 155.15 | D30: 10.8605 | E30: 166.0105 | F30: 0 | G30: 0 | H30: 21.581365 | I30: 75 | J30: 241.0105 | K30: 36.151575 | L30: 100 | M30: 341.0105
A31: 11 | B31: أبويوسف | C31: 503 | D31: 35.21 | E31: 538.21 | F31: 0 | G31: 0 | H31: 69.9673 | I31: 75 | J31: 613.21 | K31: 91.9815 | L31: 100 | M31: 713.21
C32: 492.3 | D32: 34.461 | E32: 526.761 | F32: 0 | G32: 0 | H32: 68.47893 | I32: 75 | J32: 601.761 | K32: 90.26415 | L32: 100 | M32: 701.761
A33: 12 | B33: سحالى | C33: 578.97 | D33: 40.5279 | E33: 619.4979 | F33: 0 | G33: 0 | H33: 80.534727 | I33: 0.13 | J33: =E33+H33 -> 700.032627 | K33: 105.0048941 | L33: 0.15 | M33: =J33+K33 -> 805.0375211 | N33: فقط نبيل فتحى محمدعبدالقادر في الجمعية
C34: 458.06 | D34: 32.0642 | E34: 490.1242 | F34: 0 | G34: 0 | H34: 0 | I34: 0 | J34: =E34 -> 490.1242 | K34: 73.51863 | L34: 100 | M34: =J34+L34 -> 590.1242
C35: 565 | D35: 39.55 | E35: 604.55 | F35: 0 | G35: 0 | H35: 0 | I35: 0 | J35: =E35 -> 604.55 | K35: 90.6825 | L35: 100 | M35: =J35+L35 -> 704.55
A36: 13 | B36: الصخرة | C36: 556.5 | D36: 38.955 | E36: 595.455 | F36: 0 | G36: 0 | H36: =E36*13% -> 77.40915 | I36: 0.13 | J36: =E36+H36 -> 672.86415 | K36: =J36*K4 -> 100.9296225 | L36: 0.15 | M36: =J36+K36 -> 773.7937725
A37: 14 | B37: العشرة | C37: 444.15 | D37: 31.0905 | E37: =SUM(C37:D37) -> 475.2405 | F37: 0 | G37: 0 | H37: 61.781265 | I37: 75 | J37: =E37+I37 -> 550.2405 | K37: =J37*$K$4 -> 82.536075 | L37: 100 | M37: =J37+L37 -> 650.2405
C38: 471.97 | D38: 33.0379 | E38: 505.0079 | F38: 0 | G38: 0 | H38: 65.651027 | I38: 75 | J38: 580.0079 | K38: =J38*$K$4 -> 87.001185 | L38: 100 | M38: =J38+L38 -> 680.0079
C39: 485.88 | D39: 34.0116 | E39: 519.8916 | F39: 0 | G39: 0 | H39: 67.585908 | I39: 75 | J39: 594.8916 | K39: =J39*$K$4 -> 89.23374 | L39: 100 | M39: =J39+L39 -> 694.8916
A40: 15 | B40: محل كيل | C40: 474 | D40: 33.18 | E40: 507.18 | F40: 0 | G40: 0 | H40: 65.9334 | I40: 75 | J40: 582.18
C41: 418 | D41: 29.26 | E41: 447.26 | F41: 0 | G41: 0 | H41: 58.1438 | I41: 75 | J41: 522.26
A42: 16 | B42: الجرادات | C42: 407.24 | D42: 28.5068 | E42: 435.7468 | F42: 0 | G42: 0 | H42: 56.647084 | I42: 75 | J42: 510.7468 | K42: =J42*$K$4 -> 76.61202 | L42: 100 | M42: =J42+L42 -> 610.7468
C43: 407.24 | D43: 28.5068 | E43: 435.7468 | F43: 0 | G43: 0 | H43: 56.647084 | I43: 75 | J43: 510.7468 | K43: =J43*$K$4 -> 76.61202 | L43: 100 | M43: =J43+L43 -> 610.7468
C44: 250 | D44: =C44*0% -> 0 | E44: 250 | G44: =C44 -> 250 | H44: 32.5 | I44: 75 | J44: 325 | K44: =J44*$K$4 -> 48.75 | L44: 100 | M44: =J44+L44 -> 425
A45: 17 | B45: ابوكبارية | C45: 187.2 | D45: =C45*7% -> 13.104 | E45: 200.304 | F45: 0 | G45: 0 | H45: 26.03952
A46: 18 | B46: كفرحصام | C46: 428 | D46: =C46*7% -> 29.96 | E46: 457.96 | F46: 0 | G46: 0 | H46: 59.5348 | I46: 75 | J46: =E46+I46 -> 532.96 | K46: =J46*$K$4 -> 79.944 | L46: 100 | M46: =J46+L46 -> 632.96
A47: 19 | C47: 580 | D47: 0 | E47: 580 | H47: 75.4 | I47: 0.13 | J47: =E47+H47 -> 655.4 | K47: =J47*$K$4 -> 98.31 | L47: 100 | M47: =J47+L47 -> 755.4
A48: 19 | B48: برسيق | C48: 485 | D48: =C48*7% -> 33.95 | E48: 518.95 | F48: 0 | G48: 0 | H48: 67.4635 | I48: 0 | J48: =E48+I48 -> 518.95 | K48: =J48*$K$4 -> 77.8425 | L48: 100 | M48: =J48+L48 -> 618.95
A49: 20 | B49: بلقطر الغربية | C49: 286.86 | D49: 20.0802 | E49: 306.9402 | F49: 0 | G49: 0 | H49: 39.902226 | I49: 75 | J49: =E49+I49 -> 381.9402 | K49: =J49*$K$4 -> 57.29103 | L49: 100 | M49: =J49+L49 -> 481.9402
C50: 250.48 | D50: 17.5336 | E50: 268.0136 | F50: 0 | G50: 0 | H50: 34.841768 | I50: 75 | J50: =E50+I50 -> 343.0136 | K50: =J50*$K$4 -> 51.45204 | L50: 100 | M50: =J50+L50 -> 443.0136
A51: 21 | B51: بسنتواى | C51: 413.12 | D51: 28.9184 | E51: 442.0384 | F51: 0 | G51: 0 | H51: 57.464992 | I51: 75 | J51: =E51+I51 -> 517.0384
C52: 413.12 | D52: 28.9184 | E52: 442.0384 | F52: 0 | G52: 0 | H52: 57.464992 | I52: 75 | J52: =E52+I52 -> 517.0384
A53: 22 | B53: بركة غطاس | C53: 556.5 | D53: 38.955 | E53: 595.455 | F53: 0 | G53: 0 | H53: 77.40915 | I53: 0.13 | J53: =E53+H53 -> 672.86415 | K53: =J53*$K$4 -> 100.9296225 | L53: 0.15 | M53: =J53+K53 -> 773.7937725
C54: 135 | D54: 9.45 | E54: 144.45 | F54: 0 | G54: 0 | H54: 18.7785 | I54: 75 | J54: =E54+I54 -> 219.45 | K54: =J54*$K$4 -> 32.9175 | L54: 100 | M54: =J54+L54 -> 319.45
C55: 620 | D55: 0 | E55: 620 | F55: 0 | G55: 0 | H55: 80.6 | I55: 0.13 | J55: =E55+H55 -> 700.6 | K55: =J55*$K$4 -> 105.09 | L55: 0.15 | M55: =J55+K55 -> 805.69
A56: 23 | B56: الغابة | C56: 283.65 | D56: =C56*7% -> 19.8555 | E56: 303.5055 | F56: 0 | G56: 0 | H56: 39.455715 | I56: 75 | J56: =E56+I56 -> 378.5055 | O56: 0.07 | P56: *2 | Q56: جمع | R56: *6 | S56: =Q57*4 -> 559.2468 | T56: =O57*2 -> 93.2078 | U56: =S56+T56 -> 652.4546 | Y56: 0.07 | AE56: 0.13
A57: 24 | B57: المشتركة | C57: 665.77 | D57: 46.6039 | E57: 712.3739 | F57: 0 | G57: 0 | H57: 0 | J57: 0 | K57: =J57*$K$4 -> 0 | M57: =J57+K57 -> 0 | O57: =C57*7% -> 46.6039 | P57: =O57*2 -> 93.2078 | Q57: =O57+P57 -> 139.8117 | R57: =Q57*6 -> 838.8702 | S57: 838.8702 | T57: 139.8117 | V57: =D57 -> 46.6039 | W57: =V57*2 -> 93.2078 | X57: =V57+W57 -> 139.8117 | Y57: =X57*6 -> 838.8702 | AA57: =E57 -> 712.3739 | AB57: =AA57*13% -> 92.608607 | AC57: =AB57*2 -> 185.217214 | AD57: =AB57+AC57 -> 277.825821 | AE57: =AD57*9 -> 2500.432389 | AG57: =AB57*9 -> 833.477463 | AI57: =AG57+AH57 -> 833.477463
C58: 724.49 | D58: 50.7143 | E58: 775.2043 | F58: 0 | G58: 0 | H58: =E58*13% -> 100.776559 | I58: 0.13 | J58: =E58+H58 -> 875.980859 | K58: 131.3971289 | L58: 0.15 | M58: =J58+K58 -> 1007.377988 | O58: 50.7143 | P58: 101.4286 | Q58: 152.1429 | R58: =Q58*6 -> 912.8574 | S58: 912.8574 | T58: 152.1429 | V58: 50.7143 | W58: =V58*2 -> 101.4286 | X58: =V58+W58 -> 152.1429 | Y58: =X58*6 -> 912.8574 | AA58: 775.2043 | AB58: =AA58*13% -> 100.776559 | AC58: =AB58*2 -> 201.553118 | AD58: =AB58+AC58 -> 302.329677 | AE58: =AD58*9 -> 2720.967093 | AG58: =AB58*9 -> 906.989031 | AH58: =AG58*2 -> 1813.978062 | AI58: =AG58+AH58 -> 2720.967093
C59: 647.45 | D59: 45.3215 | E59: 692.7715 | F59: 0 | G59: 0 | H59: 90.060295 | I59: 0.13 | J59: 782.831795 | K59: 117.4247692 | L59: 0.15 | M59: =J59+K59 -> 900.2565643 | O59: 45.3215 | P59: 90.643 | Q59: 135.9645 | R59: 815.787 | S59: 815.787 | T59: 135.9645 | V59: 45.3215 | W59: 90.643 | X59: 135.9645 | Y59: 815.787 | AA59: 692.7715 | AB59: 90.060295 | AC59: 180.12059 | AD59: 270.180885 | AE59: 2431.627965 | AG59: 810.542655 | AH59: 1621.08531 | AI59: 2431.627965
C60: 647.45 | D60: 45.3215 | E60: 692.7715 | F60: 0 | G60: 0 | H60: 90.060295 | I60: 0.13 | J60: 782.831795 | K60: 117.4247692 | L60: 0.15 | M60: =J60+K60 -> 900.2565643 | O60: 45.3215 | P60: 90.643 | Q60: 135.9645 | R60: 815.787 | S60: 815.787 | T60: 135.9645 | V60: 45.3215 | W60: 90.643 | X60: 135.9645 | Y60: 815.787 | AA60: 692.7715 | AB60: 90.060295 | AC60: 180.12059 | AD60: 270.180885 | AE60: 2431.627965 | AG60: 810.542655 | AH60: 1621.08531 | AI60: 2431.627965
C61: 537.77 | D61: 37.6439 | E61: 575.4139 | F61: 0 | G61: 0 | H61: 74.803807 | I61: 0.13 | J61: 650.217707 | K61: 97.53265605 | L61: 100 | M61: =J61+L61 -> 750.217707 | O61: 37.6439 | P61: 75.2878 | Q61: 112.9317 | R61: 677.5902 | S61: 677.5902 | T61: 112.9317 | V61: 37.6439 | W61: 75.2878 | X61: 112.9317 | Y61: 677.5902 | AA61: 575.4139 | AB61: 74.803807 | AC61: 149.607614 | AD61: 224.411421 | AE61: 2019.702789 | AG61: 673.234263 | AH61: 1346.468526 | AI61: 2019.702789
C62: 620 | D62: 43.4 | E62: 663.4 | F62: 0 | G62: 0 | H62: 86.242 | I62: 0.13 | J62: 749.642 | K62: 112.4463 | L62: 0.15 | M62: =J62+K62 -> 862.0883 | O62: 43.4 | P62: 86.8 | Q62: 130.2 | R62: 781.2 | S62: 781.2 | T62: 130.2 | V62: 43.4 | W62: 86.8 | X62: 130.2 | Y62: 781.2 | AA62: 663.4 | AB62: 86.242 | AC62: 172.484 | AD62: 258.726 | AE62: 2328.534 | AG62: 776.178 | AH62: 1552.356 | AI62: 2328.534
C63: 620 | D63: 43.4 | E63: 663.4 | F63: 0 | G63: 0 | H63: 86.242 | I63: 0.13 | J63: 749.642 | K63: 112.4463 | L63: 0.15 | M63: 862.0883 | O63: 43.4 | P63: 86.8 | Q63: 130.2 | R63: 781.2 | S63: 781.2 | T63: 130.2 | V63: 43.4 | W63: 86.8 | X63: 130.2 | Y63: 781.2 | AA63: 663.4 | AB63: 86.242 | AC63: 172.484 | AD63: 258.726 | AE63: 2328.534 | AG63: 776.178 | AH63: 1552.356 | AI63: 2328.534
C64: 620 | D64: 43.4 | E64: 663.4 | F64: 0 | G64: 0 | H64: 86.242 | I64: 0.13 | J64: 749.642 | K64: 112.4463 | L64: 0.15 | M64: 862.0883 | O64: 43.4 | P64: 86.8 | Q64: 130.2 | R64: 781.2 | S64: 781.2 | T64: 130.2 | V64: 43.4 | W64: 86.8 | X64: 130.2 | Y64: 781.2 | AA64: 663.4 | AB64: 86.242 | AC64: 172.484 | AD64: 258.726 | AE64: 2328.534 | AG64: 776.178 | AH64: 1552.356 | AI64: 2328.534
C65: 585 | D65: 40.95 | E65: 625.95 | F65: 0 | G65: 0 | H65: 81.3735 | I65: 0.13 | J65: 707.3235 | K65: 106.098525 | L65: 0.15 | M65: 813.422025
C66: 620 | D66: 0 | E66: 620 | F66: 0 | G66: 0 | H66: 80.6 | I66: 0.13 | J66: 700.6 | K66: 105.09 | L66: 0.15 | M66: 805.69 | V66: =D66 -> 0 | W66: 0 | X66: 0 | Y66: 0 | AA66: =E66 -> 620 | AB66: 80.6 | AC66: 161.2 | AD66: 241.8 | AE66: 2176.2 | AG66: 725.4 | AI66: 725.4
C67: 620 | D67: 0 | E67: 620 | F67: 0 | G67: 0 | H67: 0 | I67: 75 | J67: =E67+I67 -> 695 | K67: 104.25 | L67: 0.15 | M67: 799.25
A68: 25 | B68: صندوق التمويل | C68: 501.34 | D68: =C68*7% -> 35.0938 | E68: 536.4338 | F68: 0 | G68: 0 | H68: =E68*13% -> 69.736394 | I68: 0 | J68: 536.4338 | K68: 80.46507 | L68: 100 | M68: =J68+L68 -> 636.4338 | V68: =D68 -> 35.0938 | W68: 70.1876 | X68: 105.2814 | Y68: 631.6884
B69: التمويل | C69: 620 | D69: =C69*7% -> 43.4 | E69: =SUM(C69:D69) -> 663.4 | F69: 0 | G69: 0 | H69: 86.242 | I69: =E69*13% -> 86.242 | J69: 749.642 | K69: 112.4463 | L69: 0.15 | M69: =J69+K69 -> 862.0883 | O69: =I69*8 -> 689.936 | R69: =I69*3 -> 258.726 | S69: =R69*2 -> 517.452 | AA69: =E69 -> 663.4 | AB69: =AA69*13% -> 86.242 | AC69: =AB69*2 -> 172.484 | AD69: =AB69+AC69 -> 258.726 | AE69: =AD69*8 -> 2069.808
C70: 620 | D70: 0 | E70: 620 | F70: 0 | G70: 0 | H70: 80.6 | I70: =E70*13% -> 80.6 | J70: 700.6 | K70: 105.09 | L70: 0.15 | M70: =J70+K70 -> 805.69 | O70: =I70*8 -> 644.8 | R70: =I70*3 -> 241.8 | S70: =R70*2 -> 483.6 | AA70: =E70 -> 620 | AB70: =AA70*13% -> 80.6 | AC70: =AB70*2 -> 161.2 | AD70: =AB70+AC70 -> 241.8 | AE70: =AD70*8 -> 1934.4
A71: 27 | B71: بريدان | C71: 493.37 | D71: =C71*7% -> 34.5359 | E71: 527.9059 | F71: 0 | G71: 0 | H71: 68.627767 | I71: 75 | J71: 602.9059 | K71: 90.435885 | L71: 100 | M71: =J71+L71 -> 702.9059
C72: 436.66 | D72: 30.5662 | E72: 467.2262 | F72: 0 | G72: 0 | H72: 60.739406 | I72: 75 | J72: 542.2262 | K72: 81.33393 | L72: 100 | M72: 642.2262
C73: 474.11 | D73: 33.1877 | E73: 507.2977 | F73: 0 | G73: 0 | H73: 65.948701 | I73: 75 | J73: 582.2977 | K73: 87.344655 | L73: 100 | M73: 682.2977
A74: 28 | B74: دسونس | C74: 538.31 | D74: 37.6817 | E74: 575.9917 | F74: 0 | G74: 0 | H74: 74.878921 | I74: 75 | J74: 650.9917 | K74: 97.648755 | L74: 100 | M74: 750.9917
C75: 464.48 | D75: 32.5136 | E75: 496.9936 | F75: 0 | G75: 0 | H75: 64.609168 | I75: 75 | J75: 571.9936 | K75: 85.79904 | L75: 100 | M75: 671.9936
A76: 29 | B76: راضى | C76: 149.8 | D76: 10.486 | E76: 160.286 | H76: 20.83718 | I76: 75 | J76: 235.286 | K76: 35.2929 | L76: 100 | M76: 335.286
A77: 30 | B77: ب .الشرقية | C77: 245.67 | D77: 0 | E77: 245.67 | F77: تم عمل علاوة 12% بحد أدنى أبتداء من 1/7/2020 | H77: 0 | J77: 245.67 | K77: 36.8505 | L77: 100 | M77: 345.67
A78: 31 | B78: كوم القناطر | D78: 0
D79: 0
C80: 505 | D80: 0 | E80: =SUM(C80:D80) -> 505 | H80: =E80*13% -> 65.65 | I80: 75 | J80: =E80+I80 -> 580
A81: 32 | B81: زاوية نعيم | C81: 472.5 | D81: =C81*7% -> 33.075 | E81: =C81+D81 -> 505.575 | H81: =E81*13% -> 65.72475 | I81: 75 | J81: =E81+I81 -> 580.575
C82: 442 | D82: =C82*7% -> 30.94 | E82: =C82+D82 -> 472.94 | H82: =E82*13% -> 61.4822 | I82: 75 | J82: =E82+I82 -> 547.94
B83: كفرعزاز | C83: 660 | D83: 0 | E83: 660 | H83: 0 | I83: 0 | J83: =E83 -> 660 | K83: =J83*$K$4 -> 99 | L83: 100 | M83: =J83+L83 -> 760
H84: =E84*13% -> 0

Sheet الهيئة القومية للتأمينات
A2: الهيئة القومية للتأمين الاجنماعى
A3: صندوق العاملين بقطاعى الأعمال العام والخاص
A4: العاملين المستمرين بمنشاه محددة
C6: منطقة | D6: البحيرة
C7: رقم وأسم المنشاة | D7: 598367
A9: م | B9: الرقم التأمينى | C9: أسم | D9: مهنة | F9: تاريخ | G9: أجر الأشتراك | H9: 29.75% للتأمينات | I9: ملاحظات
A11: 1 | B11: 16831967 | C11: أيهاب أحمد محمود | D11: محاسب | F11: 2020-06-20 | G11: 1200 | H11: =ROUNDDOWN(G11*29.75%,2) -> 357
A12: 2 | B12: 19375513 | C12: سمير محمد عبدالخالق | D12: خفير خصوصى | F12: 2020-01-01 | G12: 2015.75 | H12: =ROUNDDOWN(G12*29.75%,2) -> 599.68
A13: 3 | B13: 46168704 | C13: محمد السيد محمد | D13: سائق جرار زراعى | F13: 2020-01-01 | G13: 2105.84 | H13: 626.48
A14: 4 | B14: 52277435 | C14: مصطفى على أحمد | D14: سائق | F14: 2020-01-01 | G14: 2193 | H14: 652.41
A15: 5 | B15: 53191641 | C15: أيمن محمد محمد | D15: خفير خصوصى | F15: 2020-01-01 | G15: 2015.75 | H15: 599.68
A16: 6 | B16: 55067032 | C16: تامر محفوظ محمد | D16: فراش - ساعى | F16: 2020-01-01 | G16: 2015.75 | H16: 599.68
A17: 7 | B17: 62427824 | C17: محمود أحمد عبدالمنعم | D17: محاسب | F17: 2020-01-01 | G17: 1200 | H17: 357
A18: 8 | B18: 63912271 | C18: محمود السيد محمد جمعة | D18: أمين مخازن | F18: 2020-06-20 | G18: 1200 | H18: 357
A19: 9 | B19: 64766836 | C19: حااتم رأفت إبراهيم على | D19: سائق | F19: 2020-01-01 | G19: 1200 | H19: 357
A20: 10 | B20: 72645762 | C20: ياسر محمد كامل سعد | D20: فنى تشغيل | F20: 2020-06-20 | G20: 1200 | H20: 357
A21: 11 | B21: 78028486 | C21: أحمد محمد قطب محمد | D21: مهندس زراعى | F21: 2020-01-01 | G21: 1200 | H21: 357

Sheet Sheet2
B2: 1 | C2: المشتركة
B3: 2 | C3: صندوق التمويل | J3: مصطفى على سليمان | K3: 1158.49 | L3: =K3*15% -> 173.7735 | M3: =K3+L3 -> 1332.2635
B4: 3 | C4: التمويل | J4: أيمن محمد حسن | K4: 1035.3 | L4: =K4*15% -> 155.295 | M4: =K4+L4 -> 1190.595
B5: 4 | C5: بسنتواى | J5: تامر محفوظ محمد | K5: 1035.3 | L5: =K5*15% -> 155.295 | M5: 1190.595
B6: 5 | C6: ابوهواش | J6: حاتم رأفت ابراهيم على | K6: 875.41 | L6: 150 | M6: 1025.41
B7: 6 | C7: العشرة | J7: أحمد قطب أبوشليل | K7: 991.4 | L7: 150 | M7: 1141.4
B8: 7 | C8: النخلة البحرية | J8: أحمد سعد عطية إبراهيم | K8: 991.404 | L8: 150 | M8: 1141.404
B9: 8 | C9: ابوكبارية | J9: محمود السيد محمد جمعة | K9: 938.42 | L9: 150 | M9: 1088.42
B10: 9 | C10: بريدان | J10: أحمد عطية عبدالرحمن محمود | K10: 805.69 | L10: 150 | M10: 955.69
B11: 10 | C11: ط.برسيق | J11: محمود محمد عبدالله قطب نمر | K11: 930.69 | L11: 150 | M11: 1080.69
B12: 11 | C12: البركة | J12: محمود أحمد عبدالمنعم | K12: 712.3739 | L12: 150 | M12: 862.3739
B13: 12 | C13: الغابة
B14: 13 | C14: ابويوسف | O14: 1489.66 | P14: =O14*7% -> 104.2762 | Q14: =O14+P14 -> 1593.9362
B15: 14 | C15: برسيق | O15: 1080.69 | P15: =O15*7% -> 75.6483 | Q15: =O15+P15 -> 1156.3383
B16: 15 | C16: القروى
B17: 16 | C17: سحالى
B18: 17 | C18: زاوية نعيم
B19: 18 | C19: سحالى
B20: 19 | C20: زاوية نعيم
B21: 20 | C21: الجرادات
B22: 21 | C22: كفرعزاز | K22: 1332.26 | L22: =K22*7% -> 93.2582 | M22: =K22+L22 -> 1425.5182 | N22: =L22*5 -> 466.291
B23: 22 | C23: الروضة خيرى | K23: 1190.6 | L23: =K23*7% -> 83.342 | M23: =K23+L23 -> 1273.942 | N23: =L23*5 -> 416.71
B24: 23 | C24: دسونس | K24: 1190.6 | L24: 83.342 | M24: 1273.942 | N24: 416.71
B25: 24 | C25: ديرامس | K25: 1025.41 | L25: 71.7787 | M25: 1097.1887 | N25: 358.8935
B26: 25 | C26: قافلة | K26: 1141.4 | L26: 79.898 | M26: 1221.298 | N26: 399.49
B27: 26 | C27: قنديل | K27: 1316.04 | L27: 92.1228 | M27: 1408.1628 | N27: 460.614
B28: 27 | C28: كفرحصام | K28: 1088.42 | L28: 76.1894 | M28: 1164.6094 | N28: 380.947
B29: 28 | C29: كوم القناطر | K29: 1080.69 | L29: 75.6483 | M29: 1156.3383 | N29: 378.2415
B30: 29 | C30: الزينى | K30: 862.37 | L30: 60.3659 | M30: 922.7359 | N30: =L30*5 -> 301.8295
B31: 30 | C31: الصخرة
B32: 31 | C32: بطورس
B33: 32 | C33: ب.الشرقية
B34: 33 | C34: ب.الغربية
B35: 34 | C35: محلة كيل
B36: 35 | C36: راضى
B37: 36 | C37: جواد حسنى
